Workbook

Sheet Instructions
F1: Boilers, furnaces, and space heaters Air emissions calculator
F3: p-sbap5-21 • 6/5/23
B4: Instructions
B5: 1) Start with the blue 'Federal standards' tab, then use the other blue tabs to enter information about your boilers.
B6: 2) The green tabs add up potential and actual emissions from the information entered on the blue tabs.
B7: 3) The yellow 'Permits & requirements' tab will help you decide which permit to apply for if the only emissions at your business is from boilers entered into this calculator.
B9: 4) Later, you can use the blue tabs to calculate your actual emissions for the air emission inventory, a report due annually if you have an air permit.
B12: Color key
B13: Blue | C13: Enter information for your facility in the blue boxes.
B14: White | C14: Do not change the values or formulas in white boxes. White boxes contain calculations for determining emissions.
B15: Green | C15: Your emission totals are in green boxes. These are automatically calculated based on information entered in blue boxes.
B16: Yellow | C16: Permit and insignificant activity thresholds
B17: Orange | C17: Orange boxes are filled with standard values. You may change them if you have test results that provide data specific to your site.
B18: Blue Text | C18: Key information and tips.
B21: Assistance
B22: This calculator was created by the Minnesota Pollution Control Agency's (MPCA) Small Business Environmental Assistance Program (SBEAP).
B23: We provide free, confidential, environmental assistance to small businesses. For more information:
B24: Call: | C24: 651/282-6143 | E24: Email: | F24: smallbizhelp.pca@state.mn.us
C25: 800/657-3938
B27: Online at the MPCA website at: | E27: https://www.pca.state.mn.us/smallbizhelp
B29: More information on boiler requirements at: | F29: https://www.pca.state.mn.us/business-with-us/boilers

Sheet Federal standards
B1: =Instructions!F3 -> p-sbap5-21 • 6/5/23
B2: U.S. Environmental Protection Agency (EPA) standards
B3: New source performance standards (NSPS) require new emission sources to be less polluting than older sources. | I3: National emission standards for hazardous air pollutants (NESHAP) prevent or reduce emissions that have health impacts.
B7: ▪ | C7: Each NSPS or NESHAP applies to specific equipment, processes, or industries.
B8: ▪ | C8: Multiple federal standards may apply to your business. It is possible that if you make a change at your business, a federal standard that did not previously apply now will, or the one you are already following may have additional requirements.
B10: ▪ | C10: Federal standards can determine whether you need a permit and what requirements you must follow. You may have to follow federal standard requirements in addition to state permit requirements. Below are some of the common federal standards that affect boilers used for process or space heat.
B15: New source performance standards (NSPS)
B16: Does the NSPS for steam generating units at small sources apply to your business? | N16: Choose Y/N
B17: This standards is for small industrial-commercial-institutional steam generating units. | N17: =IF($N$16="Yes","Because an NSPS applies to your business, you need an air permit.",IF($N$16="No","Continue to the next question below.",IF($N$16="Choose Y/N"," "," "))) -> 
B18: This standard applies if:
B19: 1) | C19: your steam-generating boiler has a maximum capacity greater than 10 million Btu per hour, and | I19: Full Text: | K19: 40 CFR 60, subp. Dc
B21: 2) | C21: your boiler was constructed, modified, or reconstructed* after June 9, 1989. | N21: =IF(N16="Yes","Continue to the next question.",IF(N16="No","",IF(N16="Choose Y/N"," "))) -> 
B24: Resource: | D24: EPA Rule information
B27: National emission standards for hazardous air pollutants (NESHAP)
B28: Does a NESHAP apply? | N28: Choose Y/N
B29: This standard is for industrial, commercial, and institutional area source boilers. | N29: =IF(N28="Yes","Follow NESHAP requirements.",IF(N28="No","Continue to the MPCA insignificant activities tab.",IF(N28="Choose Y/N"," "," "))) -> 
C31: To determine if this rule affects your business, use the Regulation Navigation Tool provided on EPA website at: | J31: Full Text: | K31: 40 CFR 63, subp. JJJJJJ
C33: EPA Regulation Navigation Tools
N34: =IF(N28="Yes","Continue to the MPCA insignificant activities tab.",IF(N28="No","",IF(N28="Choose Y/N"," "))) -> 
C35: A list of other NESHAPs is found on the MPCA website at the end of the following document:
C36: https://www.pca.state.mn.us/sites/default/files/aq-f3-rp07.doc
B39: *Definition of "construction, modification, or reconstruction"
B40: If your business does an activity which is considered construction, modification, or reconstruction, as defined here or in the standard, it may cause an NSPS or NESHAP to apply to your business or create the need for a permit amendment.
B42: ▪ | C42: Construction includes fabricating, erecting, or installing a boiler.
B43: ▪ | C43: Modification is a physical change or change in operations at an existing facility that increases the amount of an air pollutant or results in the emission of a new air pollutant.
B45: ▪ | C45: Reconstruction is the replacement of components at an existing facility that exceeds 50% of the cost required to build a new facility.
B47: The full definitions of construction and modification are available at: | I47: 40 CFR § 60.2 | K47: and reconstruction at: | N47: 40 CFR § 60.15

Sheet MPCA insignificant activities
B1: =Instructions!F3 -> p-sbap5-21 • 6/5/23
B2: MPCA insignificant activities | Q2: Tip: This section will be quicker to complete if you make a list of your heating units, the fuel they use, and the rated heat input of each unit.
B3: Answer the questions below to see if your heating units qualify as insignificant activities and if they must be included in a permit application.
B5: Is your boiler, furnace, or space heater used only for heating water for on-site personal use (such as bathroom sinks) or is it used only for food preparation at your restaurant or cafeteria? | N5: Choose Y/N
B8: Do each of your process boilers, furnaces, and space heaters have a rated heat input of less than 19,000 Btu/hr? | N8: Choose Y/N
B10: Is the combined rated heat input of all the process boilers, furnaces, and space heaters less than or equal to 420,000 Btu/hr? | N10: Choose Y/N
C12: Your heating units are insignificant activities which are not required to be listed on a permit application.1
C13: You do not need to calculate the heating units' air emissions, unless requested by MPCA.
B15: Do you have space heaters? | N15: Choose Y/N
B17: Do your space heaters burn kerosene, natural gas, or propane? | N17: Choose Y/N
B19: Is the combined heat input of all kerosene, natural gas, or propane space heaters less than or equal to 420,000 Btu/hr? | N19: Choose Y/N
C21: Your kerosene, natural gas, or propane space heaters are insignificant activities which must be listed on a permit application.2 You do not have to calculate or include the space heaters' air emissions, unless requested by MPCA.
C24: Your kerosene, natural gas, or propane space heaters may be insignificant, based on the unit's total air emissions.
C25: Answer questions below about other units at your business, then continue to the section titled "Insignificant activities: emission limits."
B28: Do your space heaters burn fuels other than kerosene, natural gas, or propane? | N28: Choose Y/N
C30: Your space heaters burning other fuels may be insignificant, based on each space heater's air emissions.
C31: Answer questions below about other heating units at your business, then continue to the section titled "Insignificant activities: emission limits."
B34: Do you have process boilers or furnaces? | N34: Choose Y/N
C36: Continue to the blue tabs to calculate air emissions, as needed.
B38: Do each of your process boilers and furnaces have a rated heat input of 420,000 Btu/hr or less? | N38: Choose Y/N
B40: Is the combined heat input of all your process boilers and furnaces less than or equal to 1,400,000 Btu/hr? | N40: Choose Y/N
C42: Your process boilers and furnaces are insignificant activities which must be listed on a permit application.2
C43: You do not have to calculate or include the heating units' air emissions, unless requested by MPCA.
C45: Your process boilers or furnaces may be insignificant activities, based on the unit's total air emissions.
C46: Continue to "Insignificant activities: emission limits" below.
B49: Insignificant activities: emission limits
B50: Use the blue fuel tabs at the bottom of this spreadsheet to calculate air emissions from each heating unit that was not identified as an insignificant activity above.
B51: The questions below will determine if each heating unit is an insignificant activity based on the calculated amount of air pollutants it emits.
B53: Does each heating unit have potential emissions less than the amounts in the table below? (If some do and others do not, select "both") | N53: Choose Y/N
C54: Tons | D54: Pollutant
C55: 1 | D55: particulate matter (PM), particulate matter less than 10 micrometers (PM10), nitrogen oxide (NOx), sulfur dioxide (SO2), and volatile organic compounds (VOC)
C57: 2 | D57: carbon monoxide (CO)
C58: 1000 | D58: carbon dioxide equivalents (CO2e)
C60: Each heating unit that has emissions less than those in the table above is an insignificant activity which must be listed on a permit application.2 However, you do not have to calculate or include the heating unit's air emissions, unless requested by MPCA.
C64: For each heating unit that has emissions equal to or greater than the amounts in the table, continue to the next question.
B67: Are you amending or applying for a registration permit or other state air permit? | N67: Choose Y/N
B69: Are you submitting an initial part 70 permit application? | N69: Choose Y/N
C71: Your heating units are not insignificant activities and must be in your permit application. You must include the heating unit's emissions in your potential emissions calculations for the entire business.
B74: Does each heating unit have emissions less than the limits listed in the table below? | N74: Choose Y/N
C75: Limit for potential emissions | E75: Pollutant
C77: 2.28 | D77: lb/hr | E77: particulate matter (PM), particulate matter less than 10 micrometers (PM10), nitrogen oxide (NOx), sulfur dioxide (SO2), and volatile organic compounds (VOC)
C79: 5.7 | D79: lb/hr | E79: carbon monoxide (CO)
C80: 10000 | D80: ton/year | E80: carbon dioxide equivalents (CO2e)
C81: 25 | D81: % | E81: individual hazardous air pollutant (HAP) thresholds in Minn. R. 7007.1300, subp. 5 3, 4
B82: OR
C84: Limit for actual emissions | E84: Pollutant
C86: 1 | D86: ton/yr | E86: particulate matter (PM), particulate matter less than 10 micrometers (PM10), nitrogen oxide (NOx), sulfur dioxide (SO2), and volatile organic compounds (VOC)
C88: 2 | D88: ton/yr | E88: carbon monoxide (CO)
C89: 1000 | D89: ton/yr | E89: carbon dioxide equivalents (CO2e)
C90: AND
C91: Potential emissions | E91: Pollutant
C92: 25 | D92: % (or less) | E92: individual hazardous air pollutant (HAP) thresholds in Minn. R. 7007.1300, subp. 5 3, 4
C94: Each heating unit that has emissions less than those listed in a table above is an insignificant activity which must be listed in an initial Part 70 permit application.5 You do not need to include these heating units' emissions in your potential emissions calculations, unless requested by MPCA.
C98: Each heating unit that has emissions equal to or greater than those listed in a table above is NOT an insignificant activity and therefore must be in your permit application. You must include the heating unit's emissions in your potential emissions calculations for the entire business.
B105: Exclusions and definitions
B106: Your heating units cannot be an insignificant activity and emissions must be included in a permit application, if:
B107: ▪ | C107: it is subject to a NESHAP (Section 112) or required to submit compliance certifications (Section 114(a)(3))
B108: ▪ | C108: it is part of a Title I modification such as prevention of significant deterioration (PSD), nonattainment new source review (NSR), NSPS, or new hazardous air pollutant standards
B110: ▪ | C110: you would become subject to a Part 70 permit by adding the emissions from the heating units
B111: Your heating units may be an insignificant activity depending on the maximum heat input, total heat input of all units, fuel type, equipment type, or emissions.
B114: ▪ | C114: 'Rated heat input' means the number of Btu per hour which the manufacturer has determined to be the maximum, continuous rated capability of the heating equipment. You can often find the heat input on the nameplate for the heating unit.
B116: ▪ | C116: 'Space heater' means a heating unit that is not connected to piping or ducting to distribute the heat. Space heaters can be hung from the ceiling, a stationary stove, or movable throughout your building.
B118: ▪ | C118: 'Process boiler' or 'furnace' includes all indirect heat exchangers where fossil fuel is burned to produce steam, hot water, hot air, or other hot liquid, gas, or solid, where the products of combustion do not have direct contact with the heated medium.
D120: For this rule, fossil fuel includes natural gas, petroleum, coal, wood, peat, and any form of solid, liquid, or gaseous fuel derived from those materials.
B123: 1 | C123: Minn. R. 7007.1300, subp. 2(A) | F123: 4 | G123: The option to use combined hazardous air pollutant (HAP) actual emissions is not provided in this table. All process boilers, furnaces, and space heaters emit one or more of the hazardous air pollutants that are excluded from that option.
B124: 2 | C124: Minn. R. 7007.1300, subp. 3
B125: 3 | C125: Minn. R. 7007.1300, subp. 5
B126: 5 | C126: Minn. R. 7007.1300, subp. 4 | G126: https://www.revisor.mn.gov/rules/7007.1300/

Sheet Natural gas
B1: =Instructions!F3 -> p-sbap5-21 • 6/5/23
B2: Air emissions from burning natural gas | M2: Tip: How to use this calculator
B3: Natural gas combustion (less than 100 million Btu per hour) | M3: If you have… | O3: For potential emissions | Q3: For actual emissions
B5: If you have a boiler with a rating of more than 100 million Btu per hour, different emission factors must be used (see EPA AP-42 Chapter 1.4). | M5: One process/heating unit | O5: Enter maximum rated heat input | Q5: Enter amount of fuel burned or actual operation hours
B7: What is the total maximum rated heat input for your natural gas units? | G7: 0 | H7: Btu per hour | I7: (Check your units!) | M7: More than one process/heating unit | O7: Enter the total maximum rated heat input of all units, combined | Q7: Enter amount of fuel burned. Do not use operation hours.
B8: In the previous 12 months, how many | E8: Choose one | G8: 0 | H8: =IF(E8='Data validation'!A6," ",IF(E8='Data validation'!A7,"hours/year",IF(E8='Data validation'!A8,"cu ft/year"))) -> 
B9: =IF(E8='Data validation'!A8,"(you can use your gas bill)"," ") ->  | M9: A unit that can burn more than one fuel type | O9: Calculate for both fuel types. The highest ton/yr per pollutant is to be used for potential emissions | Q9: Enter amount of each type of fuel burned.
B10: Natural gas potential and actual emissions
B11: Pollutant | C11: a | D11: b | E11: c | F11: d | G11: e
C12: GWP1 | D12: Maximum hourly usage | E12: Actual natural gas burned | F12: Hours in a Year | G12: Emission Factor | H12: Potential Emissions | I12: Actual Emissions | K12: Insignificant Activity3 Limits
D14: (cu ft/hr) | E14: (cu ft/yr) | F14: (hr/yr) | G14: (lbs/cu ft) | H14: (ton/yr) | I14: (tons/yr) | K14: (tons/yr)
D15: (Btu/hr) / (1020 Btu/cuft) | F15: 24 hr/day * 365 day/yr | H15: (b * d * e) / 2000 | I15: ( c * e ) / 2000
D16: =G7/1020 -> 0 | E16: =IF(E8='Data validation'!A6,0,IF(E8='Data validation'!A7,((G8/1020)*G7),IF(E8='Data validation'!A8,G8))) -> 0 | F16: 8760 | G16: by pollutant
B17: Criteria Air Pollutants | I17: Source: EPA AP-42 Chapter 1.4 | J17: =SUM(J18:J25) -> 6
B18: PM | G18: 7.6e-06 | H18: =$D$16*$F$16*$G18/2000 -> 0 | I18: =($E$16*$G18)/2000 -> 0 | J18: =IF(K18>H18,1,0) -> 1 | K18: 1
B19: PM10 | G19: =G18 -> 7.6e-06 | H19: 0 | I19: 0 | J19: =IF(K19>H19,1,0) -> 1 | K19: 1
B20: PM2.5 | G20: =G19 -> 7.6e-06 | H20: 0 | I20: 0
B21: SOx | G21: 6e-07 | H21: 0 | I21: 0 | J21: =IF(K21>H21,1,0) -> 1 | K21: 1
B22: NOx | G22: 0.0001 | H22: 0 | I22: 0 | J22: 1 | K22: 1
B23: VOC | G23: 5.5e-06 | H23: 0 | I23: 0 | J23: 1 | K23: 1
B24: CO | G24: 8.4e-05 | H24: 0 | I24: 0 | J24: 1 | K24: 2
B25: Lead | G25: 5e-10 | H25: 0 | I25: 0 | J25: 0
B26: Greenhouse Gas Emissions | J26: 0
B27: CO2 2 | C27: 1 | G27: =53.06/1000000*1026/0.453592 -> 0.1200187834 | H27: =$D$16*$F$16*$G27/2000 -> 0 | I27: =($E$16*$G27)/2000 -> 0 | J27: 0
B28: CH4 2 | C28: 25 | G28: =(10^-3)/(10^6)*1026/0.453592 -> 2.261944655e-06 | H28: =$D$16*$F$16*$G28/2000 -> 0 | I28: =($E$16*$G28)/2000 -> 0 | J28: 0
B29: N2O 2 | C29: 298 | G29: =(10^-4)/(10^6)*1026/0.453592 -> 2.261944655e-07 | H29: =$D$16*$F$16*$G29/2000 -> 0 | I29: =($E$16*$G29)/2000 -> 0 | J29: 0
F30: GHG Total (CO2e) 2 | H30: =(C27*H27)+(C28*H28)+(C29*H29) -> 0 | I30: =(C27*I27)+(C28*I28)+(C29*I29) -> 0 | J30: 1 | K30: 1000
B31: Hazardous Air Pollutants | I31: Source: EPA AP-42 Chapter 1.4
B32: Benzene | G32: =0.0021/10^6 -> 2.1e-09 | H32: =$D$16*$F$16*$G32/2000 -> 0 | I32: =($E$16*$G32)/2000 -> 0
B33: Formaldehyde | G33: =0.075/10^6 -> 7.5e-08 | H33: 0 | I33: 0
B34: Hexane | G34: =1.8/1000000 -> 1.8e-06 | H34: 0 | I34: 0
B35: Naphthalene | G35: 6.1e-10 | H35: 0 | I35: 0
B36: Toluene | G36: 3.4e-09 | H36: 0 | I36: 0
B37: Arsenic | G37: 2e-10 | H37: 0 | I37: 0
B38: Beryllium | G38: 1.2e-11 | H38: 0 | I38: 0
B39: Cadmium | G39: 1.1e-09 | H39: 0 | I39: 0
B40: Chromium | G40: 1.4e-09 | H40: 0 | I40: 0
B41: Cobalt | G41: 8.4e-11 | H41: 0 | I41: 0
B42: Manganese | G42: 3.8e-10 | H42: 0 | I42: 0
B43: Mercury | G43: 2.6e-10 | H43: 0 | I43: 0
B44: Nickel | G44: 2.1e-09 | H44: 0 | I44: 0
B45: Selenium | G45: 2.4e-11 | H45: 0 | I45: 0
F46: HAP total | H46: =SUM(H32:H45) -> 0 | I46: =SUM(I32:I45) -> 0
B47: 1 Global Warming Potential from 40 CFR Part 98, Subpart A, Table A-1
B48: 2 CO2e = carbon dioxide equivalents
B49: 3 See insignificant activities at Minn. R. 7007.1300 and on the 'Permits & Requirements' tab. | G49: Minn. R. 7007.1300

Sheet Propane
B1: =Instructions!F3 -> p-sbap5-21 • 6/5/23
B2: Air emissions from burning propane | M2: Tip: How to use this calculator
B3: Propane combustion | M3: If you have… | O3: For potential emissions | Q3: For actual emissions
M5: One process/heating unit | O5: Enter maximum rated heat input | Q5: Enter amount of fuel burned or actual operation hours
B6: What is the total maximum rated heat input for your propane units? | G6: 0 | H6: Btu per hour | I6: (Check your units!)
B7: In the previous 12 months, how many | E7: Choose one | G7: 0 | H7: =IF(E7='Data validation'!A12," ",IF(E7='Data validation'!A13,"hours/year",IF(E7='Data validation'!A14,"gallons/year"))) ->  | M7: More than one process/heating unit | O7: Enter the total maximum rated heat input of all units, combined | Q7: Enter amount of fuel burned. Do not use operation hours.
B9: Sulfur content of propane | G9: 0.18 | H9: grains/100 cubic feet | M9: A unit that can burn more than one fuel type | O9: Calculate for both fuel types. The highest ton/yr per pollutant is to be used for potential emissions | Q9: Enter amount of each type of fuel burned.
B11: Propane potential and actual emissions
B12: Pollutant | C12: a | D12: b | E12: c | F12: d | G12: e
C13: GWP1 | D13: Maximum hourly usage | E13: Actual propane burned | F13: Hours in a Year | G13: Emission Factor | H13: Potential Emissions | I13: Actual Emissions | K13: Insignificant Activity3 Limits
D15: (gal/hr) | E15: (gal/yr) | F15: (hr/yr) | G15: (lb/gal) | H15: (ton/yr) | I15: (tons/yr) | K15: (tons/yr)
D16: (Btu/hr) / (91500 Btu/gal) | F16: 24 hr/day * 365 day/yr | H16: (b * d * e) / 2000 | I16: ( c * e ) / 2000
D17: =G6/91500 -> 0 | E17: =IF(E7='Data validation'!A12,0,IF(E7='Data validation'!A13,((G7/91500)*G6),IF(E7='Data validation'!A14,G7))) -> 0 | F17: 8760 | G17: by pollutant
B18: Criteria Air Pollutants | I18: Source: EPA AP-42 Chapter 1.5 | J18: =SUM(J19:J26) -> 6
B19: PM | G19: =0.7/1000 -> 0.0007 | H19: =$D$17*$F$17*$G19/2000 -> 0 | I19: =($E$17*$G19)/2000 -> 0 | J19: =IF(K19>H19,1,0) -> 1 | K19: 1
B20: PM10 | G20: =G19 -> 0.0007 | H20: 0 | I20: 0 | J20: =IF(K20>H20,1,0) -> 1 | K20: 1
B21: PM2.5 | G21: =G20 -> 0.0007 | H21: 0 | I21: 0
B22: SOx | G22: =0.001*G9 -> 0.00018 | H22: 0 | I22: 0 | J22: =IF(K22>H22,1,0) -> 1 | K22: 1
B23: NOx | G23: 0.013 | H23: 0 | I23: 0 | J23: =IF(K23>H23,1,0) -> 1 | K23: 1
B24: VOC | G24: 0.001 | H24: 0 | I24: 0 | J24: =IF(K24>H24,1,0) -> 1 | K24: 1
B25: CO | G25: 0.0075 | H25: 0 | I25: 0 | J25: =IF(K25>H25,1,0) -> 1 | K25: 2
B26: Lead | G26: n/a
B27: Greenhouse Gas Emissions | I27: Source: 40 CFR 98, Subp. C, Table C-1 and C-2
B28: CO2 | C28: 1 | G28: =61.46/1000000*91500/0.453592 -> 12.39790384 | H28: =$D$17*$F$17*$G28/2000 -> 0 | I28: =($E$17*$G28)/2000 -> 0
B29: CH4 | C29: 25 | G29: =(1*10^-3)/1000000*91500/0.453592 -> 0.0002017231344 | H29: =$D$17*$F$17*$G29/2000 -> 0 | I29: =($E$17*$G29)/2000 -> 0
B30: N2O | C30: 298 | G30: =(1*10^-4)/1000000*91500/0.453592 -> 2.017231344e-05 | H30: =$D$17*$F$17*$G30/2000 -> 0 | I30: =($E$17*$G30)/2000 -> 0
F31: GHG Total (CO2e) 2 | H31: =(C28*H28)+(C29*H29)+(C30*H30) -> 0 | I31: =(C28*I28)+(C29*I29)+(C30*I30) -> 0 | J31: =IF(K31>H31,1,0) -> 1 | K31: 1000
B32: Hazardous Air Pollutants | I32: Source: EPA AP-42 Chapter 1.4
B33: Benzene | G33: =(0.0021/10^6)/2488*91500 -> 7.72307074e-08 | H33: =$D$17*$F$17*$G33/2000 -> 0 | I33: =($E$17*$G33)/2000 -> 0
B34: Formaldehyde | G34: =(0.075/10^6)/2488*91500 -> 2.75823955e-06 | H34: =$D$17*$F$17*$G34/2000 -> 0 | I34: =($E$17*$G34)/2000 -> 0
B35: Hexane | G35: =(1.8/1000000)/2488*91500 -> 6.61977492e-05 | H35: 0 | I35: 0
B36: Naphthalene | G36: =0.00000000061/2488*91500 -> 2.243368167e-08 | H36: 0 | I36: 0
B37: Toluene | G37: =0.0000000034/2488*91500 -> 1.250401929e-07 | H37: 0 | I37: 0
B38: Arsenic | G38: =0.0000000002/2488*91500 -> 7.355305466e-09 | H38: 0 | I38: 0
B39: Beryllium | G39: =0.000000000012/2488*91500 -> 4.41318328e-10 | H39: 0 | I39: 0
B40: Cadmium | G40: =0.0000000011/2488*91500 -> 4.045418006e-08 | H40: 0 | I40: 0
B41: Chromium | G41: =0.0000000014/2488*91500 -> 5.148713826e-08 | H41: 0 | I41: 0
B42: Cobalt | G42: =0.000000000084/2488*91500 -> 3.089228296e-09 | H42: 0 | I42: 0
B43: Manganese | G43: =0.00000000038/2488*91500 -> 1.397508039e-08 | H43: 0 | I43: 0
B44: Mercury | G44: =0.00000000026/2488*91500 -> 9.561897106e-09 | H44: 0 | I44: 0
B45: Nickel | G45: =0.0000000021/2488*91500 -> 7.72307074e-08 | H45: 0 | I45: 0
B46: Selenium | G46: =0.000000000024/2488*91500 -> 8.826366559e-10 | H46: 0 | I46: 0
F47: HAP total | H47: =SUM(H33:H46) -> 0 | I47: =SUM(I33:I46) -> 0
B48: 1 Global Warming Potential from 40 CFR Part 98, Subpart A, Table A-1
B49: 2 CO2e = carbon dioxide equivalents
B50: 3 See insignificant activities at Minn. R. 7007.1300 and on the 'Permits & Requirements' tab. | G50: Minn. R. 7007.1300

Sheet Fuel oil
B1: =Instructions!F3 -> p-sbap5-21 • 6/5/23
B2: Air emissions from burning fuel oil | M2: Tip: How to use this calculator
B3: Fuel oil combustion: Fuel oil no. 1, 2 (diesel), 5, 6 | M3: If you have… | O3: For potential emissions | Q3: For actual emissions
M5: One process/heating unit | O5: Enter maximum rated heat input | Q5: Enter amount of fuel burned or actual operation hours
B6: What type of fuel oil do you burn? | G6: Choose one | H6: =IF($G$6='Fuel oil emission factors'!B5,'Fuel oil emission factors'!B4,IF($G$6='Fuel oil emission factors'!D5,'Fuel oil emission factors'!B4,IF($G$6='Fuel oil emission factors'!F5,'Fuel oil emission factors'!F4,IF($G$6='Fuel oil emission factors'!H5,'Fuel oil emission factors'!F4,IF($G$6='Fuel oil emission factors'!A5," "))))) -> 
F7: What type of boiler do you have? | G7: Choose one | M7: More than one process/heating unit | O7: Enter the total maximum rated heat input of all units, combined | Q7: Enter amount of fuel burned. Do not use operation hours.
B8: What is the total maximum rated heat input for your fuel oil units? | G8: 0 | H8: Btu per hour | I8: (Check your units!)
B9: In the previous 12 months, how many | E9: Choose one | G9: 0 | H9: =IF(E9='Data validation'!A18," ",IF(E9='Data validation'!A19,"hours/year",IF(E9='Data validation'!A20,"gallons/year"))) ->  | M9: A unit that can burn more than one fuel type | O9: Calculate for both fuel types. The highest ton/yr per pollutant is to be used for potential emissions | Q9: Enter amount of each type of fuel burned.
B10: Heat value of the fuel oil | G10: =IF(G6='Fuel oil emission factors'!B5,'Fuel oil emission factors'!C51,IF(G6='Fuel oil emission factors'!D5,'Fuel oil emission factors'!C52,IF(G6='Fuel oil emission factors'!F5,'Fuel oil emission factors'!C53,IF(G6='Fuel oil emission factors'!H5,'Fuel oil emission factors'!C54,IF(G6='Fuel oil emission factors'!A5,0))))) -> 0 | H10: Btu per gallon
B11: Sulfur content of fuel | G11: 0.05 | H11: %
B13: Fuel oil potential and actual emissions
B14: Pollutant | C14: a | D14: b | E14: c | F14: d | G14: e
C15: GWP1 | D15: Maximum hourly usage | E15: Actual fuel oil burned | F15: Hours in a Year | G15: Emission Factor3 | H15: Potential Emissions | I15: Actual Emissions | K15: Insignificant Activity3 Limits
D17: (gal/hr) | E17: (gal/yr) | F17: (hr/yr) | G17: (lb/gal) | H17: (ton/yr) | I17: (tons/yr) | K17: (tons/yr)
D18: (Btu/hr) / (Btu/gallon) | F18: 24 hr/day * 365 day/yr | H18: (b * d * e) / 2000 | I18: ( c * e ) / 2000
D19: =IF(G10=0,0,IF(G10>0,G8/G10,0)) -> 0 | E19: =IF(E9='Data validation'!A18,0,IF(E9='Data validation'!A19,((G9/G10)*G8),IF(E9='Data validation'!A20,G9))) -> 0 | F19: 8760 | G19: by pollutant
B20: Criteria Air Pollutants | J20: =SUM(J21:J27) -> 6
B21: PM | G21: =IF(OR($G$6="Choose one",$G$7="Choose one"),0,IF(AND($G$6=FOone,$G$7=FOcom),'Fuel oil emission factors'!B9,IF(AND($G$6=FOone,$G$7=FOind),'Fuel oil emission factors'!C9,IF(AND($G$6=FOtwo,$G$7=FOcom),'Fuel oil emission factors'!D9,IF(AND($G$6=FOtwo,$G$7=FOind),'Fuel oil emission factors'!E9,IF(AND($G$6=FOfive,$G$7=FOcom),'Fuel oil emission factors'!F9,IF(AND($G$6=FOfive,$G$7=FOind),'Fuel oil emission factors'!G9,IF(AND($G$6=FOsix,$G$7=FOcom),'Fuel oil emission factors'!H9,IF(AND($G$6=FOsix,$G$7=FOind),'Fuel oil emission factors'!I9))))))))) -> 0 | H21: =$D$19*$F$19*$G21/2000 -> 0 | I21: =($E$19*$G21)/2000 -> 0 | J21: =IF(K21>H21,1,0) -> 1 | K21: 1
B22: PM10 | G22: =IF(OR($G$6="Choose one",$G$7="Choose one"),0,IF(AND($G$6=FOone,$G$7=FOcom),'Fuel oil emission factors'!B10,IF(AND($G$6=FOone,$G$7=FOind),'Fuel oil emission factors'!C10,IF(AND($G$6=FOtwo,$G$7=FOcom),'Fuel oil emission factors'!D10,IF(AND($G$6=FOtwo,$G$7=FOind),'Fuel oil emission factors'!E10,IF(AND($G$6=FOfive,$G$7=FOcom),'Fuel oil emission factors'!F10,IF(AND($G$6=FOfive,$G$7=FOind),'Fuel oil emission factors'!G10,IF(AND($G$6=FOsix,$G$7=FOcom),'Fuel oil emission factors'!H10,IF(AND($G$6=FOsix,$G$7=FOind),'Fuel oil emission factors'!I10))))))))) -> 0 | H22: 0 | I22: 0 | J22: =IF(K22>H22,1,0) -> 1 | K22: 1
B23: PM2.5 | G23: =IF(OR($G$6="Choose one",$G$7="Choose one"),0,IF(AND($G$6=FOone,$G$7=FOcom),'Fuel oil emission factors'!B11,IF(AND($G$6=FOone,$G$7=FOind),'Fuel oil emission factors'!C11,IF(AND($G$6=FOtwo,$G$7=FOcom),'Fuel oil emission factors'!D11,IF(AND($G$6=FOtwo,$G$7=FOind),'Fuel oil emission factors'!E11,IF(AND($G$6=FOfive,$G$7=FOcom),'Fuel oil emission factors'!F11,IF(AND($G$6=FOfive,$G$7=FOind),'Fuel oil emission factors'!G11,IF(AND($G$6=FOsix,$G$7=FOcom),'Fuel oil emission factors'!H11,IF(AND($G$6=FOsix,$G$7=FOind),'Fuel oil emission factors'!I11))))))))) -> 0 | H23: 0 | I23: 0
B24: SOx | G24: =IF($G$6='Fuel oil emission factors'!$B$5,'Fuel oil emission factors'!B17,IF($G$6='Fuel oil emission factors'!$D$5,'Fuel oil emission factors'!D17,IF($G$6='Fuel oil emission factors'!$F$5,'Fuel oil emission factors'!F17,IF($G$6='Fuel oil emission factors'!$H$5,'Fuel oil emission factors'!H17,IF($G$6='Fuel oil emission factors'!$A$5,0))))) -> 0 | H24: 0 | I24: 0 | J24: =IF(K24>H24,1,0) -> 1 | K24: 1
B25: NOx | G25: =IF($G$6='Fuel oil emission factors'!$B$5,'Fuel oil emission factors'!B18,IF($G$6='Fuel oil emission factors'!$D$5,'Fuel oil emission factors'!D18,IF($G$6='Fuel oil emission factors'!$F$5,'Fuel oil emission factors'!F18,IF($G$6='Fuel oil emission factors'!$H$5,'Fuel oil emission factors'!H18,IF($G$6='Fuel oil emission factors'!$A$5,0))))) -> 0 | H25: 0 | I25: 0 | J25: =IF(K25>H25,1,0) -> 1 | K25: 1
B26: VOC | G26: =IF($G$6='Fuel oil emission factors'!$B$5,'Fuel oil emission factors'!B19,IF($G$6='Fuel oil emission factors'!$D$5,'Fuel oil emission factors'!D19,IF($G$6='Fuel oil emission factors'!$F$5,'Fuel oil emission factors'!F19,IF($G$6='Fuel oil emission factors'!$H$5,'Fuel oil emission factors'!H19,IF($G$6='Fuel oil emission factors'!$A$5,0))))) -> 0 | H26: 0 | I26: 0 | J26: =IF(K26>H26,1,0) -> 1 | K26: 1
B27: CO | G27: =IF($G$6='Fuel oil emission factors'!$B$5,'Fuel oil emission factors'!B20,IF($G$6='Fuel oil emission factors'!$D$5,'Fuel oil emission factors'!D20,IF($G$6='Fuel oil emission factors'!$F$5,'Fuel oil emission factors'!F20,IF($G$6='Fuel oil emission factors'!$H$5,'Fuel oil emission factors'!H20,IF($G$6='Fuel oil emission factors'!$A$5,0))))) -> 0 | H27: 0 | I27: 0 | J27: =IF(K27>H27,1,0) -> 1 | K27: 2
B28: Lead | G28: =IF($G$6='Fuel oil emission factors'!$B$5,'Fuel oil emission factors'!B21,IF($G$6='Fuel oil emission factors'!$D$5,'Fuel oil emission factors'!D21,IF($G$6='Fuel oil emission factors'!$F$5,'Fuel oil emission factors'!F21,IF($G$6='Fuel oil emission factors'!$H$5,'Fuel oil emission factors'!H21,IF($G$6='Fuel oil emission factors'!$A$5,0))))) -> 0 | H28: 0 | I28: 0
B29: Greenhouse Gas Emissions
B30: CO2 | C30: 1 | G30: =IF($G$6='Fuel oil emission factors'!$B$5,'Fuel oil emission factors'!B23,IF($G$6='Fuel oil emission factors'!$D$5,'Fuel oil emission factors'!D23,IF($G$6='Fuel oil emission factors'!$F$5,'Fuel oil emission factors'!F23,IF($G$6='Fuel oil emission factors'!$H$5,'Fuel oil emission factors'!H23,IF($G$6='Fuel oil emission factors'!$A$5,0))))) -> 0 | H30: =$D$19*$F$19*$G30/2000 -> 0 | I30: =($E$19*$G30)/2000 -> 0
B31: CH4 | C31: 25 | G31: =IF($G$6='Fuel oil emission factors'!$B$5,'Fuel oil emission factors'!B24,IF($G$6='Fuel oil emission factors'!$D$5,'Fuel oil emission factors'!D24,IF($G$6='Fuel oil emission factors'!$F$5,'Fuel oil emission factors'!F24,IF($G$6='Fuel oil emission factors'!$H$5,'Fuel oil emission factors'!H24,IF($G$6='Fuel oil emission factors'!$A$5,0))))) -> 0 | H31: =$D$19*$F$19*$G31/2000 -> 0 | I31: =($E$19*$G31)/2000 -> 0
B32: N2O | C32: 298 | G32: =IF($G$6='Fuel oil emission factors'!$B$5,'Fuel oil emission factors'!B25,IF($G$6='Fuel oil emission factors'!$D$5,'Fuel oil emission factors'!D25,IF($G$6='Fuel oil emission factors'!$F$5,'Fuel oil emission factors'!F25,IF($G$6='Fuel oil emission factors'!$H$5,'Fuel oil emission factors'!H25,IF($G$6='Fuel oil emission factors'!$A$5,0))))) -> 0 | H32: =$D$19*$F$19*$G32/2000 -> 0 | I32: =($E$19*$G32)/2000 -> 0
F33: GHG Total (CO2e) 2 | H33: =(C30*H30)+(C31*H31)+(C32*H32) -> 0 | I33: =(C30*I30)+(C31*I31)+(C32*I32) -> 0 | J33: =IF(K33>H33,1,0) -> 1 | K33: 1000
B34: Hazardous Air Pollutants
B35: Benzene | G35: =IF($G$6='Fuel oil emission factors'!$B$5,'Fuel oil emission factors'!B27,IF($G$6='Fuel oil emission factors'!$D$5,'Fuel oil emission factors'!D27,IF($G$6='Fuel oil emission factors'!$F$5,'Fuel oil emission factors'!F27,IF($G$6='Fuel oil emission factors'!$H$5,'Fuel oil emission factors'!H27,IF($G$6='Fuel oil emission factors'!$A$5,0))))) -> 0 | H35: =IF(G35=0," ",IF(G35>0,($D$19*$F$19*$G35/2000))) ->  | I35: =IF(G35=0," ",IF(G35>0,(($E$19*$G35)/2000))) -> 
B36: Ethylbenzene | G36: =IF($G$6='Fuel oil emission factors'!$B$5,'Fuel oil emission factors'!B28,IF($G$6='Fuel oil emission factors'!$D$5,'Fuel oil emission factors'!D28,IF($G$6='Fuel oil emission factors'!$F$5,'Fuel oil emission factors'!F28,IF($G$6='Fuel oil emission factors'!$H$5,'Fuel oil emission factors'!H28,IF($G$6='Fuel oil emission factors'!$A$5,0))))) -> 0 | H36: =IF(G36=0," ",IF(G36>0,($D$19*$F$19*$G36/2000))) ->  | I36: =IF(G36=0," ",IF(G36>0,(($E$19*$G36)/2000))) -> 
B37: Formaldehyde | G37: =IF($G$6='Fuel oil emission factors'!$B$5,'Fuel oil emission factors'!B29,IF($G$6='Fuel oil emission factors'!$D$5,'Fuel oil emission factors'!D29,IF($G$6='Fuel oil emission factors'!$F$5,'Fuel oil emission factors'!F29,IF($G$6='Fuel oil emission factors'!$H$5,'Fuel oil emission factors'!H29,IF($G$6='Fuel oil emission factors'!$A$5,0))))) -> 0
B38: Methyl chloroform | G38: =IF($G$6='Fuel oil emission factors'!$B$5,'Fuel oil emission factors'!B30,IF($G$6='Fuel oil emission factors'!$D$5,'Fuel oil emission factors'!D30,IF($G$6='Fuel oil emission factors'!$F$5,'Fuel oil emission factors'!F30,IF($G$6='Fuel oil emission factors'!$H$5,'Fuel oil emission factors'!H30,IF($G$6='Fuel oil emission factors'!$A$5,0))))) -> 0 | H38: =IF(G38=0," ",IF(G38>0,($D$19*$F$19*$G38/2000))) ->  | I38: =IF(G38=0," ",IF(G38>0,(($E$19*$G38)/2000))) -> 
B39: Naphthalene | G39: =IF($G$6='Fuel oil emission factors'!$B$5,'Fuel oil emission factors'!B31,IF($G$6='Fuel oil emission factors'!$D$5,'Fuel oil emission factors'!D31,IF($G$6='Fuel oil emission factors'!$F$5,'Fuel oil emission factors'!F31,IF($G$6='Fuel oil emission factors'!$H$5,'Fuel oil emission factors'!H31,IF($G$6='Fuel oil emission factors'!$A$5,0))))) -> 0
B40: Toluene | G40: =IF($G$6='Fuel oil emission factors'!$B$5,'Fuel oil emission factors'!B32,IF($G$6='Fuel oil emission factors'!$D$5,'Fuel oil emission factors'!D32,IF($G$6='Fuel oil emission factors'!$F$5,'Fuel oil emission factors'!F32,IF($G$6='Fuel oil emission factors'!$H$5,'Fuel oil emission factors'!H32,IF($G$6='Fuel oil emission factors'!$A$5,0))))) -> 0
B41: o-Xylene | G41: =IF($G$6='Fuel oil emission factors'!$B$5,'Fuel oil emission factors'!B33,IF($G$6='Fuel oil emission factors'!$D$5,'Fuel oil emission factors'!D33,IF($G$6='Fuel oil emission factors'!$F$5,'Fuel oil emission factors'!F33,IF($G$6='Fuel oil emission factors'!$H$5,'Fuel oil emission factors'!H33,IF($G$6='Fuel oil emission factors'!$A$5,0))))) -> 0
B42: Antimony | G42: =IF($G$6='Fuel oil emission factors'!$B$5,'Fuel oil emission factors'!B35,IF($G$6='Fuel oil emission factors'!$D$5,'Fuel oil emission factors'!D35,IF($G$6='Fuel oil emission factors'!$F$5,'Fuel oil emission factors'!F35,IF($G$6='Fuel oil emission factors'!$H$5,'Fuel oil emission factors'!H35,IF($G$6='Fuel oil emission factors'!$A$5,0))))) -> 0
B43: Arsenic | G43: =IF($G$6='Fuel oil emission factors'!$B$5,'Fuel oil emission factors'!B36,IF($G$6='Fuel oil emission factors'!$D$5,'Fuel oil emission factors'!D36,IF($G$6='Fuel oil emission factors'!$F$5,'Fuel oil emission factors'!F36,IF($G$6='Fuel oil emission factors'!$H$5,'Fuel oil emission factors'!H36,IF($G$6='Fuel oil emission factors'!$A$5,0))))) -> 0
B44: Beryllium | G44: =IF($G$6='Fuel oil emission factors'!$B$5,'Fuel oil emission factors'!B37,IF($G$6='Fuel oil emission factors'!$D$5,'Fuel oil emission factors'!D37,IF($G$6='Fuel oil emission factors'!$F$5,'Fuel oil emission factors'!F37,IF($G$6='Fuel oil emission factors'!$H$5,'Fuel oil emission factors'!H37,IF($G$6='Fuel oil emission factors'!$A$5,0))))) -> 0
B45: Cadmium | G45: =IF($G$6='Fuel oil emission factors'!$B$5,'Fuel oil emission factors'!B38,IF($G$6='Fuel oil emission factors'!$D$5,'Fuel oil emission factors'!D38,IF($G$6='Fuel oil emission factors'!$F$5,'Fuel oil emission factors'!F38,IF($G$6='Fuel oil emission factors'!$H$5,'Fuel oil emission factors'!H38,IF($G$6='Fuel oil emission factors'!$A$5,0))))) -> 0
B46: Chromium | G46: =IF($G$6='Fuel oil emission factors'!$B$5,'Fuel oil emission factors'!B39,IF($G$6='Fuel oil emission factors'!$D$5,'Fuel oil emission factors'!D39,IF($G$6='Fuel oil emission factors'!$F$5,'Fuel oil emission factors'!F39,IF($G$6='Fuel oil emission factors'!$H$5,'Fuel oil emission factors'!H39,IF($G$6='Fuel oil emission factors'!$A$5,0))))) -> 0
B47: Chromium (VI) | G47: =IF($G$6='Fuel oil emission factors'!$B$5,'Fuel oil emission factors'!B40,IF($G$6='Fuel oil emission factors'!$D$5,'Fuel oil emission factors'!D40,IF($G$6='Fuel oil emission factors'!$F$5,'Fuel oil emission factors'!F40,IF($G$6='Fuel oil emission factors'!$H$5,'Fuel oil emission factors'!H40,IF($G$6='Fuel oil emission factors'!$A$5,0))))) -> 0
B48: Cobalt | G48: =IF($G$6='Fuel oil emission factors'!$B$5,'Fuel oil emission factors'!B41,IF($G$6='Fuel oil emission factors'!$D$5,'Fuel oil emission factors'!D41,IF($G$6='Fuel oil emission factors'!$F$5,'Fuel oil emission factors'!F41,IF($G$6='Fuel oil emission factors'!$H$5,'Fuel oil emission factors'!H41,IF($G$6='Fuel oil emission factors'!$A$5,0))))) -> 0
B49: Manganese | G49: =IF($G$6='Fuel oil emission factors'!$B$5,'Fuel oil emission factors'!B42,IF($G$6='Fuel oil emission factors'!$D$5,'Fuel oil emission factors'!D42,IF($G$6='Fuel oil emission factors'!$F$5,'Fuel oil emission factors'!F42,IF($G$6='Fuel oil emission factors'!$H$5,'Fuel oil emission factors'!H42,IF($G$6='Fuel oil emission factors'!$A$5,0))))) -> 0
B50: Mercury | G50: =IF($G$6='Fuel oil emission factors'!$B$5,'Fuel oil emission factors'!B43,IF($G$6='Fuel oil emission factors'!$D$5,'Fuel oil emission factors'!D43,IF($G$6='Fuel oil emission factors'!$F$5,'Fuel oil emission factors'!F43,IF($G$6='Fuel oil emission factors'!$H$5,'Fuel oil emission factors'!H43,IF($G$6='Fuel oil emission factors'!$A$5,0))))) -> 0
B51: Nickel | G51: =IF($G$6='Fuel oil emission factors'!$B$5,'Fuel oil emission factors'!B44,IF($G$6='Fuel oil emission factors'!$D$5,'Fuel oil emission factors'!D44,IF($G$6='Fuel oil emission factors'!$F$5,'Fuel oil emission factors'!F44,IF($G$6='Fuel oil emission factors'!$H$5,'Fuel oil emission factors'!H44,IF($G$6='Fuel oil emission factors'!$A$5,0))))) -> 0
B52: Selenium | G52: =IF($G$6='Fuel oil emission factors'!$B$5,'Fuel oil emission factors'!B45,IF($G$6='Fuel oil emission factors'!$D$5,'Fuel oil emission factors'!D45,IF($G$6='Fuel oil emission factors'!$F$5,'Fuel oil emission factors'!F45,IF($G$6='Fuel oil emission factors'!$H$5,'Fuel oil emission factors'!H45,IF($G$6='Fuel oil emission factors'!$A$5,0))))) -> 0
F53: HAP total | H53: =SUM(H35:H52) -> 0 | I53: =SUM(I35:I52) -> 0
B54: 1 Global Warming Potential from 40 CFR Part 98, Subpart A, Table A-1
B55: 2 CO2e = carbon dioxide equivalents
B56: 3 See insignificant activities at Minn. R. 7007.1300 and on the 'Permits & Requirements' tab. | G56: Minn. R. 7007.1300

Sheet Waste oil
B1: =Instructions!F3 -> p-sbap5-21 • 6/5/23
B2: Air emissions from burning waste oil | M2: Tip: How to use this calculator
B3: Waste oil combustion | M3: If you have… | O3: For potential emissions | Q3: For actual emissions
M5: One process/heating unit | O5: Enter maximum rated heat input | Q5: Enter amount of fuel burned or actual operation hours
B6: What is the total maximum rated heat input for your waste oil units? | G6: 0 | H6: Btu per hour | I6: (Check your units!)
B7: In the previous 12 months, how many | E7: Choose one | G7: 0 | H7: =IF(E7='Data validation'!A18," ",IF(E7='Data validation'!A19,"hours/year",IF(E7='Data validation'!A20,"gallons/year"))) ->  | M7: More than one process/heating unit | O7: Enter the total maximum rated heat input of all units, combined | Q7: Enter amount of fuel burned. Do not use operation hours.
B9: Ash content | F9: Ash content | G9: 5 | H9: % by weight | M9: A unit that can burn more than one fuel type | O9: Calculate for both fuel types. The highest ton/yr per pollutant is to be used for potential emissions | Q9: Enter amount of each type of fuel burned.
B10: Sulfur content | G10: 0.5 | H10: % by weight
B11: Lead content | G11: 0.05 | H11: % by weight
B13: Waste oil potential and actual emissions
B14: Pollutant | C14: a | D14: b | E14: c | F14: d | G14: e
C15: GWP1 | D15: Maximum hourly usage2 | E15: Actual waste oil burned | F15: Hours in a Year | G15: Emission Factor | H15: Potential Emissions | I15: Actual Emissions | K15: Insignificant Activity3 Limits
D17: (gal/hr) | E17: (gal/yr) | F17: (hr/yr) | G17: (lb/gal) | H17: (ton/yr) | I17: (tons/yr) | K17: (tons/yr)
D18: Btu/hr / 135000 Btu/gal | F18: 24 hr/day * 365 day/yr | H18: (b * d * e) / 2000 | I18: ( c * e ) / 2000
D19: =G6/135000 -> 0 | E19: =IF(E7='Data validation'!A18,0,IF(E7='Data validation'!A19,((G7/135000)*G6),IF(E7='Data validation'!A20,G7))) -> 0 | F19: 8760 | G19: by pollutant
B20: Criteria Air Pollutants | H20: Source: EPA AP-42 Chapter 1.11 | J20: =SUM(J21:J28) -> 6
B21: PM | G21: =0.064*G9 -> 0.32 | H21: =$D$19*$F$19*$G21/2000 -> 0 | I21: =($E$19*$G21)/2000 -> 0 | J21: =IF(K21>H21,1,0) -> 1 | K21: 1
B22: PM10 | G22: =0.051*G9 -> 0.255 | H22: 0 | I22: 0 | J22: =IF(K22>H22,1,0) -> 1 | K22: 1
B23: PM2.5 | G23: =G22 -> 0.255 | H23: 0 | I23: 0
B24: SOx | G24: =0.147*G10 -> 0.0735 | H24: 0 | I24: 0 | J24: =IF(K24>H24,1,0) -> 1 | K24: 1
B25: NOx | G25: 0.019 | H25: 0 | I25: 0 | J25: =IF(K25>H25,1,0) -> 1 | K25: 1
B26: VOC | G26: 0.001 | H26: 0 | I26: 0 | J26: =IF(K26>H26,1,0) -> 1 | K26: 1
B27: CO | G27: 0.005 | H27: 0 | I27: 0 | J27: =IF(K27>H27,1,0) -> 1 | K27: 2
B28: Lead | G28: =0.055*G11 -> 0.00275 | H28: 0 | I28: 0
B29: Greenhouse Gas Emissions | H29: Source: 40 CFR 98, Subp. C, Table C-1 and C-2
B30: CO2 | C30: 1 | G30: 22.02 | H30: =$D$19*$F$19*$G30/2000 -> 0 | I30: =($E$19*$G30)/2000 -> 0
B31: CH4 | C31: 25 | G31: 0.000892 | H31: =$D$19*$F$19*$G31/2000 -> 0 | I31: =($E$19*$G31)/2000 -> 0
B32: N2O | C32: 298 | G32: 0.000178 | H32: =$D$19*$F$19*$G32/2000 -> 0 | I32: =($E$19*$G32)/2000 -> 0
F33: GHG Total (CO2e) 2 | H33: =(C30*H30)+(C31*H31)+(C32*H32) -> 0 | I33: =(C30*I30)+(C31*I31)+(C32*I32) -> 0 | J33: =IF(K33>H33,1,0) -> 1 | K33: 1000
B34: Hazardous Air Pollutants | H34: Source: EPA AP-42 Chapter 1.11
B35: Naphthalene | G35: =0.013/1000 -> 1.3e-05 | H35: =$D$19*$F$19*$G35/2000 -> 0 | I35: =($E$19*$G35)/2000 -> 0
B36: Arsenic | G36: =0.11/1000 -> 0.00011 | H36: 0 | I36: =($E$19*$G36)/2000 -> 0
B37: Cadmium | G37: =0.0093/1000 -> 9.3e-06 | H37: 0 | I37: 0
B38: Chromium | G38: =0.02/1000 -> 2e-05 | H38: 0 | I38: 0
B39: Cobalt | G39: =0.00021/1000 -> 2.1e-07 | H39: 0 | I39: 0
B40: Manganese | G40: =0.068/1000 -> 6.8e-05 | H40: 0 | I40: 0
B41: Nickel | G41: =0.011/1000 -> 1.1e-05 | H41: 0 | I41: 0
F42: HAP total | H42: =SUM(H35:H41) -> 0 | I42: =SUM(I35:I41) -> 0
B43: 1 Global Warming Potential from 40 CFR Part 98, Subpart A, Table A-1
B44: 2 CO2e = carbon dioxide equivalents
B45: 3 See insignificant activities at Minn. R. 7007.1300 and on the 'Permits & Requirements' tab. | G45: Minn. R. 7007.1300

Sheet Wood
B1: =Instructions!F3 -> p-sbap5-21 • 6/5/23
B2: Air emissions from burning wood | M2: Tip: How to use this calculator
B3: Wood combustion: wet, dry, and bark | M3: If you have… | O3: For potential emissions | Q3: For actual emissions
M5: One process/heating unit | O5: Enter maximum rated heat input | Q5: Enter amount of fuel burned or actual operation hours
B6: What type of wood do you burn? | G6: Choose one
B7: What is the total maximum rated heat input for your wood units? | G7: 0 | H7: Btu per hour | I7: (Check your units!) | M7: More than one process/heating unit | O7: Enter the total maximum rated heat input of all units, combined | Q7: Enter amount of fuel burned. Do not use operation hours.
B8: In the previous 12 months, how many | E8: Choose one | G8: 0 | H8: =IF(E8='Data validation'!A24," ",IF(E8='Data validation'!A25,"hours/year",IF(E8='Data validation'!A26,"tons/year"))) -> 
M9: A unit that can burn more than one fuel type | O9: Calculate for both fuel types. The highest ton/yr per pollutant is to be used for potential emissions | Q9: Enter amount of each type of fuel burned.
B10: Heat value of wood | G10: =IF($G$6=Choose_one,0,IF($G$6=BBW,'Wood emission factors'!B6,IF($G$6=DW,'Wood emission factors'!D6,IF($G$6=WW,'Wood emission factors'!C6,IF($G$6=AWT,'Wood emission factors'!E6))))) -> 0 | H10: Btu per ton
B12: Wood potential and actual emissions
B13: Pollutant | C13: a | D13: b | E13: c | F13: d | G13: e
C14: GWP1 | D14: Maximum hourly usage | E14: Actual wood burned | F14: Hours in a Year | G14: Emission Factor3 | H14: Potential Emissions | I14: Actual Emissions | K14: Insignificant Activity3 Limits
D16: (ton/hr) | E16: (ton/yr) | F16: (hr/yr) | G16: (lb/ton) | H16: (ton/yr) | I16: (tons/yr) | K16: (tons/yr)
D17: (Btu/hr) / (Btu/ton) | F17: 24 hr/day*365 day/yr | H17: (b * d * e) / 2000 | I17: ( c * e ) / 2000
D18: =IF(G10=0,0,IF(G10>0,(G7/G10))) -> 0 | E18: =IF(OR(G8=0,G10=0),0,IF(E8='Data validation'!A24,0,IF(E8='Data validation'!A25,(G7*G8/G10),IF(E8='Data validation'!A26,G8)))) -> 0 | F18: 8760 | G18: by pollutant
B19: Criteria Air Pollutants | J19: =SUM(J20:J27) -> 6
B20: PM | G20: =IF($G$6=Choose_one,0,IF($G$6=BBW,'Wood emission factors'!B8,IF($G$6=WW,'Wood emission factors'!C8,IF($G$6=DW,'Wood emission factors'!D8,IF($G$6=AWT,'Wood emission factors'!E8))))) -> 0 | H20: =$D$18*$F$18*$G20/2000 -> 0 | I20: =($E$18*$G20)/2000 -> 0 | J20: =IF(K20>H20,1,0) -> 1 | K20: 1
B21: PM10 | G21: =IF($G$6=Choose_one,0,IF($G$6=BBW,'Wood emission factors'!B9,IF($G$6=WW,'Wood emission factors'!C9,IF($G$6=DW,'Wood emission factors'!D9,IF($G$6=AWT,'Wood emission factors'!E9))))) -> 0 | H21: 0 | I21: 0 | J21: =IF(K21>H21,1,0) -> 1 | K21: 1
B22: PM2.5 | G22: =IF($G$6=Choose_one,0,IF($G$6=BBW,'Wood emission factors'!B10,IF($G$6=WW,'Wood emission factors'!C10,IF($G$6=DW,'Wood emission factors'!D10,IF($G$6=AWT,'Wood emission factors'!E10))))) -> 0 | H22: 0 | I22: 0
B23: SOx | G23: =IF($G$6=Choose_one,0,IF($G$6=BBW,'Wood emission factors'!B11,IF($G$6=WW,'Wood emission factors'!C11,IF($G$6=DW,'Wood emission factors'!D11,IF($G$6=AWT,'Wood emission factors'!E11))))) -> 0 | H23: 0 | I23: 0 | J23: =IF(K23>H23,1,0) -> 1 | K23: 1
B24: NOx | G24: =IF($G$6=Choose_one,0,IF($G$6=BBW,'Wood emission factors'!B12,IF($G$6=WW,'Wood emission factors'!C12,IF($G$6=DW,'Wood emission factors'!D12,IF($G$6=AWT,'Wood emission factors'!E12))))) -> 0 | H24: 0 | I24: 0 | J24: =IF(K24>H24,1,0) -> 1 | K24: 1
B25: VOC | G25: =IF($G$6=Choose_one,0,IF($G$6=BBW,'Wood emission factors'!B13,IF($G$6=WW,'Wood emission factors'!C13,IF($G$6=DW,'Wood emission factors'!D13,IF($G$6=AWT,'Wood emission factors'!E13))))) -> 0 | H25: 0 | I25: 0 | J25: =IF(K25>H25,1,0) -> 1 | K25: 1
B26: CO | G26: =IF($G$6=Choose_one,0,IF($G$6=BBW,'Wood emission factors'!B14,IF($G$6=WW,'Wood emission factors'!C14,IF($G$6=DW,'Wood emission factors'!D14,IF($G$6=AWT,'Wood emission factors'!E14))))) -> 0 | H26: 0 | I26: 0 | J26: =IF(K26>H26,1,0) -> 1 | K26: 2
B27: Lead | G27: =IF($G$6=Choose_one,0,IF($G$6=BBW,'Wood emission factors'!B15,IF($G$6=WW,'Wood emission factors'!C15,IF($G$6=DW,'Wood emission factors'!D15,IF($G$6=AWT,'Wood emission factors'!E15))))) -> 0 | H27: 0 | I27: 0
B28: Greenhouse Gas Emissions
B29: CO2 | C29: 1 | G29: =IF($G$6=Choose_one,0,IF($G$6=BBW,'Wood emission factors'!B17,IF($G$6=WW,'Wood emission factors'!C17,IF($G$6=DW,'Wood emission factors'!D17,IF($G$6=AWT,'Wood emission factors'!E17))))) -> 0 | H29: =$D$18*$F$18*$G29/2000 -> 0 | I29: =($E$18*$G29)/2000 -> 0
B30: CH4 | C30: 25 | G30: =IF($G$6=Choose_one,0,IF($G$6=BBW,'Wood emission factors'!B18,IF($G$6=WW,'Wood emission factors'!C18,IF($G$6=DW,'Wood emission factors'!D18,IF($G$6=AWT,'Wood emission factors'!E18))))) -> 0 | H30: =$D$18*$F$18*$G30/2000 -> 0 | I30: =($E$18*$G30)/2000 -> 0
B31: N2O | C31: 298 | G31: =IF($G$6=Choose_one,0,IF($G$6=BBW,'Wood emission factors'!B19,IF($G$6=WW,'Wood emission factors'!C19,IF($G$6=DW,'Wood emission factors'!D19,IF($G$6=AWT,'Wood emission factors'!E19))))) -> 0 | H31: =$D$18*$F$18*$G31/2000 -> 0 | I31: =($E$18*$G31)/2000 -> 0
F32: GHG Total (CO2e) 2 | H32: =(C29*H29)+(C30*H30)+(C31*H31) -> 0 | I32: =(C29*I29)+(C30*I30)+(C31*I31) -> 0 | J32: =IF(K32>H32,1,0) -> 1 | K32: 1000
B33: Hazardous Air Pollutants
B34: Acetaldehyde | G34: =IF($G$6=Choose_one,0,IF($G$6=BBW,'Wood emission factors'!B21,IF($G$6=WW,'Wood emission factors'!C21,IF($G$6=DW,'Wood emission factors'!D21,IF($G$6=AWT,'Wood emission factors'!E21))))) -> 0 | H34: =$D$18*$F$18*$G34/2000 -> 0 | I34: =($E$18*$G34)/2000 -> 0
B35: Acetophenone | G35: =IF($G$6=Choose_one,0,IF($G$6=BBW,'Wood emission factors'!B22,IF($G$6=WW,'Wood emission factors'!C22,IF($G$6=DW,'Wood emission factors'!D22,IF($G$6=AWT,'Wood emission factors'!E22))))) -> 0 | H35: =$D$18*$F$18*$G35/2000 -> 0 | I35: =($E$18*$G35)/2000 -> 0
B36: Acrolein | G36: =IF($G$6=Choose_one,0,IF($G$6=BBW,'Wood emission factors'!B23,IF($G$6=WW,'Wood emission factors'!C23,IF($G$6=DW,'Wood emission factors'!D23,IF($G$6=AWT,'Wood emission factors'!E23))))) -> 0 | H36: 0 | I36: 0
B37: Benzene | G37: =IF($G$6=Choose_one,0,IF($G$6=BBW,'Wood emission factors'!B24,IF($G$6=WW,'Wood emission factors'!C24,IF($G$6=DW,'Wood emission factors'!D24,IF($G$6=AWT,'Wood emission factors'!E24))))) -> 0 | H37: 0 | I37: 0
B38: Bis(2-ethylhexyl)phthalate | G38: =IF($G$6=Choose_one,0,IF($G$6=BBW,'Wood emission factors'!B25,IF($G$6=WW,'Wood emission factors'!C25,IF($G$6=DW,'Wood emission factors'!D25,IF($G$6=AWT,'Wood emission factors'!E25))))) -> 0 | H38: 0 | I38: 0
B39: Carbon tetrachloride | G39: =IF($G$6=Choose_one,0,IF($G$6=BBW,'Wood emission factors'!B26,IF($G$6=WW,'Wood emission factors'!C26,IF($G$6=DW,'Wood emission factors'!D26,IF($G$6=AWT,'Wood emission factors'!E26))))) -> 0 | H39: 0 | I39: 0
B40: Chlorine | G40: =IF($G$6=Choose_one,0,IF($G$6=BBW,'Wood emission factors'!B27,IF($G$6=WW,'Wood emission factors'!C27,IF($G$6=DW,'Wood emission factors'!D27,IF($G$6=AWT,'Wood emission factors'!E27))))) -> 0 | H40: 0 | I40: 0
B41: 2-Chloroacetophenone | G41: =IF($G$6=Choose_one,0,IF($G$6=BBW,'Wood emission factors'!B28,IF($G$6=WW,'Wood emission factors'!C28,IF($G$6=DW,'Wood emission factors'!D28,IF($G$6=AWT,'Wood emission factors'!E28))))) -> 0 | H41: 0 | I41: 0
B42: Chlorobenzene | G42: =IF($G$6=Choose_one,0,IF($G$6=BBW,'Wood emission factors'!B29,IF($G$6=WW,'Wood emission factors'!C29,IF($G$6=DW,'Wood emission factors'!D29,IF($G$6=AWT,'Wood emission factors'!E29))))) -> 0 | H42: 0 | I42: 0
B43: Chloroform | G43: =IF($G$6=Choose_one,0,IF($G$6=BBW,'Wood emission factors'!B30,IF($G$6=WW,'Wood emission factors'!C30,IF($G$6=DW,'Wood emission factors'!D30,IF($G$6=AWT,'Wood emission factors'!E30))))) -> 0 | H43: 0 | I43: 0
B44: 2,4-Dinitrophenol | G44: =IF($G$6=Choose_one,0,IF($G$6=BBW,'Wood emission factors'!B31,IF($G$6=WW,'Wood emission factors'!C31,IF($G$6=DW,'Wood emission factors'!D31,IF($G$6=AWT,'Wood emission factors'!E31))))) -> 0 | H44: 0 | I44: 0
B45: Ethyl benzene | G45: =IF($G$6=Choose_one,0,IF($G$6=BBW,'Wood emission factors'!B32,IF($G$6=WW,'Wood emission factors'!C32,IF($G$6=DW,'Wood emission factors'!D32,IF($G$6=AWT,'Wood emission factors'!E32))))) -> 0 | H45: 0 | I45: 0
B46: Ethylene dibromide | G46: =IF($G$6=Choose_one,0,IF($G$6=BBW,'Wood emission factors'!B33,IF($G$6=WW,'Wood emission factors'!C33,IF($G$6=DW,'Wood emission factors'!D33,IF($G$6=AWT,'Wood emission factors'!E33))))) -> 0 | H46: 0 | I46: 0
B47: Ethylene dichloride | G47: =IF($G$6=Choose_one,0,IF($G$6=BBW,'Wood emission factors'!B34,IF($G$6=WW,'Wood emission factors'!C34,IF($G$6=DW,'Wood emission factors'!D34,IF($G$6=AWT,'Wood emission factors'!E34))))) -> 0 | H47: 0 | I47: 0
B48: Formaldehyde | G48: =IF($G$6=Choose_one,0,IF($G$6=BBW,'Wood emission factors'!B35,IF($G$6=WW,'Wood emission factors'!C35,IF($G$6=DW,'Wood emission factors'!D35,IF($G$6=AWT,'Wood emission factors'!E35))))) -> 0 | H48: 0 | I48: 0
B49: Methylene chloride | G49: =IF($G$6=Choose_one,0,IF($G$6=BBW,'Wood emission factors'!B36,IF($G$6=WW,'Wood emission factors'!C36,IF($G$6=DW,'Wood emission factors'!D36,IF($G$6=AWT,'Wood emission factors'!E36))))) -> 0 | H49: 0 | I49: 0
B50: Methyl chloroform | G50: =IF($G$6=Choose_one,0,IF($G$6=BBW,'Wood emission factors'!B37,IF($G$6=WW,'Wood emission factors'!C37,IF($G$6=DW,'Wood emission factors'!D37,IF($G$6=AWT,'Wood emission factors'!E37))))) -> 0 | H50: 0 | I50: 0
B51: Naphthalene | G51: =IF($G$6=Choose_one,0,IF($G$6=BBW,'Wood emission factors'!B38,IF($G$6=WW,'Wood emission factors'!C38,IF($G$6=DW,'Wood emission factors'!D38,IF($G$6=AWT,'Wood emission factors'!E38))))) -> 0 | H51: 0 | I51: 0
B52: Phenol | G52: =IF($G$6=Choose_one,0,IF($G$6=BBW,'Wood emission factors'!B39,IF($G$6=WW,'Wood emission factors'!C39,IF($G$6=DW,'Wood emission factors'!D39,IF($G$6=AWT,'Wood emission factors'!E39))))) -> 0 | H52: 0 | I52: 0
B53: Propionaldehyde | G53: =IF($G$6=Choose_one,0,IF($G$6=BBW,'Wood emission factors'!B40,IF($G$6=WW,'Wood emission factors'!C40,IF($G$6=DW,'Wood emission factors'!D40,IF($G$6=AWT,'Wood emission factors'!E40))))) -> 0 | H53: 0 | I53: 0
B54: Styrene | G54: =IF($G$6=Choose_one,0,IF($G$6=BBW,'Wood emission factors'!B41,IF($G$6=WW,'Wood emission factors'!C41,IF($G$6=DW,'Wood emission factors'!D41,IF($G$6=AWT,'Wood emission factors'!E41))))) -> 0 | H54: 0 | I54: 0
B55: 2,3,7,8-Tetrachlorodibenzo-p-dioxin | G55: =IF($G$6=Choose_one,0,IF($G$6=BBW,'Wood emission factors'!B42,IF($G$6=WW,'Wood emission factors'!C42,IF($G$6=DW,'Wood emission factors'!D42,IF($G$6=AWT,'Wood emission factors'!E42))))) -> 0 | H55: 0 | I55: 0
B56: 2,4,6-Trichlorophenol | G56: =IF($G$6=Choose_one,0,IF($G$6=BBW,'Wood emission factors'!B43,IF($G$6=WW,'Wood emission factors'!C43,IF($G$6=DW,'Wood emission factors'!D43,IF($G$6=AWT,'Wood emission factors'!E43))))) -> 0 | H56: 0 | I56: 0
B57: Toluene | G57: =IF($G$6=Choose_one,0,IF($G$6=BBW,'Wood emission factors'!B44,IF($G$6=WW,'Wood emission factors'!C44,IF($G$6=DW,'Wood emission factors'!D44,IF($G$6=AWT,'Wood emission factors'!E44))))) -> 0 | H57: 0 | I57: 0
B58: Vinyl chloride | G58: =IF($G$6=Choose_one,0,IF($G$6=BBW,'Wood emission factors'!B45,IF($G$6=WW,'Wood emission factors'!C45,IF($G$6=DW,'Wood emission factors'!D45,IF($G$6=AWT,'Wood emission factors'!E45))))) -> 0 | H58: 0 | I58: 0
B59: o-Xylenes | G59: =IF($G$6=Choose_one,0,IF($G$6=BBW,'Wood emission factors'!B46,IF($G$6=WW,'Wood emission factors'!C46,IF($G$6=DW,'Wood emission factors'!D46,IF($G$6=AWT,'Wood emission factors'!E46))))) -> 0 | H59: 0 | I59: 0
B60: Antimony | G60: =IF($G$6=Choose_one,0,IF($G$6=BBW,'Wood emission factors'!B47,IF($G$6=WW,'Wood emission factors'!C47,IF($G$6=DW,'Wood emission factors'!D47,IF($G$6=AWT,'Wood emission factors'!E47))))) -> 0 | H60: 0 | I60: 0
B61: Arsenic | G61: =IF($G$6=Choose_one,0,IF($G$6=BBW,'Wood emission factors'!B48,IF($G$6=WW,'Wood emission factors'!C48,IF($G$6=DW,'Wood emission factors'!D48,IF($G$6=AWT,'Wood emission factors'!E48))))) -> 0 | H61: 0 | I61: 0
B62: Beryllium | G62: =IF($G$6=Choose_one,0,IF($G$6=BBW,'Wood emission factors'!B49,IF($G$6=WW,'Wood emission factors'!C49,IF($G$6=DW,'Wood emission factors'!D49,IF($G$6=AWT,'Wood emission factors'!E49))))) -> 0 | H62: 0 | I62: 0
B63: Cadmium | G63: =IF($G$6=Choose_one,0,IF($G$6=BBW,'Wood emission factors'!B50,IF($G$6=WW,'Wood emission factors'!C50,IF($G$6=DW,'Wood emission factors'!D50,IF($G$6=AWT,'Wood emission factors'!E50))))) -> 0 | H63: 0 | I63: 0
B64: Chromium | G64: =IF($G$6=Choose_one,0,IF($G$6=BBW,'Wood emission factors'!B51,IF($G$6=WW,'Wood emission factors'!C51,IF($G$6=DW,'Wood emission factors'!D51,IF($G$6=AWT,'Wood emission factors'!E51))))) -> 0 | H64: 0 | I64: 0
B65: Chromium (VI) | G65: =IF($G$6=Choose_one,0,IF($G$6=BBW,'Wood emission factors'!B52,IF($G$6=WW,'Wood emission factors'!C52,IF($G$6=DW,'Wood emission factors'!D52,IF($G$6=AWT,'Wood emission factors'!E52))))) -> 0 | H65: 0 | I65: 0
B66: Cobalt | G66: =IF($G$6=Choose_one,0,IF($G$6=BBW,'Wood emission factors'!B53,IF($G$6=WW,'Wood emission factors'!C53,IF($G$6=DW,'Wood emission factors'!D53,IF($G$6=AWT,'Wood emission factors'!E53))))) -> 0 | H66: 0 | I66: 0
B67: Manganese | G67: =IF($G$6=Choose_one,0,IF($G$6=BBW,'Wood emission factors'!B54,IF($G$6=WW,'Wood emission factors'!C54,IF($G$6=DW,'Wood emission factors'!D54,IF($G$6=AWT,'Wood emission factors'!E54))))) -> 0 | H67: 0 | I67: 0
B68: Mercury | G68: =IF($G$6=Choose_one,0,IF($G$6=BBW,'Wood emission factors'!B55,IF($G$6=WW,'Wood emission factors'!C55,IF($G$6=DW,'Wood emission factors'!D55,IF($G$6=AWT,'Wood emission factors'!E55))))) -> 0 | H68: 0 | I68: 0
B69: Nickel | G69: =IF($G$6=Choose_one,0,IF($G$6=BBW,'Wood emission factors'!B56,IF($G$6=WW,'Wood emission factors'!C56,IF($G$6=DW,'Wood emission factors'!D56,IF($G$6=AWT,'Wood emission factors'!E56))))) -> 0 | H69: 0 | I69: 0
B70: Selenium | G70: =IF($G$6=Choose_one,0,IF($G$6=BBW,'Wood emission factors'!B57,IF($G$6=WW,'Wood emission factors'!C57,IF($G$6=DW,'Wood emission factors'!D57,IF($G$6=AWT,'Wood emission factors'!E57))))) -> 0 | H70: 0 | I70: 0
F71: HAP total | H71: =SUM(H34:H70) -> 0 | I71: =SUM(I34:I70) -> 0
B72: 1 Global Warming Potential from 40 CFR Part 98, Subpart A, Table A-1
B73: 2 CO2e = carbon dioxide equivalents
B74: 3 See insignificant activities at Minn. R. 7007.1300 and on the 'Permits & Requirements' tab. | G74: Minn. R. 7007.1300

Sheet Potential emissions
B1: =Instructions!F3 -> p-sbap5-21 • 6/5/23
B2: Potential emissions: Boilers, furnaces, and space heaters
B3: =IF('Data validation'!B29="yes","The flag next to a potential emission total means your potential emissions exceed the permitting threshold and a permit is required.","These pollutant totals represent the information you entered in the blue tabs.") -> These pollutant totals represent the information you entered in the blue tabs.
B4: Pollutant | C4: Natural Gas | D4: Propane | E4: Fuel Oil | F4: Waste Oil | G4: Wood | H4: Potential Emissions | I4: Permitting Threshold
C6: (ton/yr) | D6: (ton/yr) | E6: (ton/yr) | F6: (ton/yr) | G6: (ton/yr) | H6: (ton/yr) | I6: (ton/yr)
B7: Criteria Air Pollutants | C7: =IF('Natural gas'!J17=6,"Insignificant",0) -> Insignificant | D7: =IF(Propane!J18=6,"Insignificant"," ") -> Insignificant | E7: =IF('Fuel oil'!J20=6,"Insignificant"," ") -> Insignificant | F7: =IF('Waste oil'!J20=6,"Insignificant"," ") -> Insignificant | G7: =IF(Wood!J19=6,"Insignificant"," ") -> Insignificant
B8: PM | C8: ='Natural gas'!H18 -> 0 | D8: =Propane!H19 -> 0 | E8: ='Fuel oil'!H21 -> 0 | F8: ='Waste oil'!H21 -> 0 | G8: =Wood!H20 -> 0 | H8: =SUM(C8:G8) -> 0 | I8: 100
B9: PM10 | C9: ='Natural gas'!H19 -> 0 | D9: =Propane!H20 -> 0 | E9: ='Fuel oil'!H22 -> 0 | F9: ='Waste oil'!H22 -> 0 | G9: =Wood!H21 -> 0 | H9: 0 | I9: 25
B10: PM2.5 | C10: ='Natural gas'!H20 -> 0 | D10: =Propane!H21 -> 0 | E10: ='Fuel oil'!H23 -> 0 | F10: ='Waste oil'!H23 -> 0 | G10: =Wood!H22 -> 0 | H10: 0 | I10: 100
B11: SOx | C11: ='Natural gas'!H21 -> 0 | D11: =Propane!H22 -> 0 | E11: ='Fuel oil'!H24 -> 0 | F11: ='Waste oil'!H24 -> 0 | G11: =Wood!H23 -> 0 | H11: 0 | I11: 50
B12: NOx | C12: ='Natural gas'!H22 -> 0 | D12: =Propane!H23 -> 0 | E12: ='Fuel oil'!H25 -> 0 | F12: ='Waste oil'!H25 -> 0 | G12: =Wood!H24 -> 0 | H12: 0 | I12: 100
B13: VOC | C13: ='Natural gas'!H23 -> 0 | D13: =Propane!H24 -> 0 | E13: ='Fuel oil'!H26 -> 0 | F13: ='Waste oil'!H26 -> 0 | G13: =Wood!H25 -> 0 | H13: 0 | I13: 100
B14: CO | C14: ='Natural gas'!H24 -> 0 | D14: =Propane!H25 -> 0 | E14: ='Fuel oil'!H27 -> 0 | F14: ='Waste oil'!H27 -> 0 | G14: =Wood!H26 -> 0 | H14: 0 | I14: 100
B15: Lead | C15: ='Natural gas'!H25 -> 0 | D15: =Propane!H26 -> 0 | E15: ='Fuel oil'!H28 -> 0 | F15: ='Waste oil'!H28 -> 0 | G15: =Wood!H27 -> 0 | H15: 0 | I15: 0.5
B16: Greenhouse Gas Emissions
B17: CO2 | C17: ='Natural gas'!H27 -> 0 | D17: =Propane!H28 -> 0 | E17: ='Fuel oil'!H30 -> 0 | F17: ='Waste oil'!H30 -> 0 | G17: =Wood!H29 -> 0 | H17: =SUM(C17:G17) -> 0
B18: CH4 | C18: ='Natural gas'!H28 -> 0 | D18: =Propane!H29 -> 0 | E18: ='Fuel oil'!H31 -> 0 | F18: ='Waste oil'!H31 -> 0 | G18: =Wood!H30 -> 0 | H18: =SUM(C18:G18) -> 0
B19: N2O | C19: ='Natural gas'!H29 -> 0 | D19: =Propane!H30 -> 0 | E19: ='Fuel oil'!H32 -> 0 | F19: ='Waste oil'!H32 -> 0 | G19: =Wood!H31 -> 0 | H19: =SUM(C19:G19) -> 0
B20: GHG total CO2e | H20: =(H17*1)+(H18*25)+(H19*298) -> 0 | I20: 100000
B21: Hazardous Air Pollutants
B22: Acetaldehyde | G22: =Wood!H34 -> 0 | H22: =SUM(C22:G22) -> 0
B23: Acetophenone | G23: =Wood!H35 -> 0 | H23: 0
B24: Acrolein | G24: =Wood!H36 -> 0 | H24: 0
B25: Benzene | C25: ='Natural gas'!H32 -> 0 | D25: =Propane!H33 -> 0 | E25: ='Fuel oil'!H35 ->  | G25: =Wood!H37 -> 0 | H25: 0
B26: Bis(2-ethylhexyl)phthalate | G26: =Wood!H38 -> 0 | H26: 0
B27: Carbon tetrachloride | G27: =Wood!H39 -> 0 | H27: 0
B28: Chlorine | G28: =Wood!H40 -> 0 | H28: 0
B29: 2-Chloroacetophenone | G29: =Wood!H41 -> 0 | H29: 0
B30: Chlorobenzene | G30: =Wood!H42 -> 0 | H30: 0
B31: Chloroform | G31: =Wood!H43 -> 0 | H31: 0
B32: 2,4-Dinitrotoluene | G32: =Wood!H44 -> 0 | H32: 0
B33: Ethyl benzene | E33: ='Fuel oil'!H36 ->  | G33: =Wood!H45 -> 0 | H33: 0
B34: Ethylene dibromide | G34: =Wood!H46 -> 0 | H34: 0
B35: Ethylene dichloride | G35: =Wood!H47 -> 0 | H35: 0
B36: Formaldehyde | C36: ='Natural gas'!H33 -> 0 | D36: =Propane!H34 -> 0 | E36: ='Fuel oil'!H37 ->  | G36: =Wood!H48 -> 0 | H36: 0
B37: Hexane | C37: ='Natural gas'!H34 -> 0 | D37: =Propane!H35 -> 0 | H37: 0
B38: Methylene chloride | G38: =Wood!H49 -> 0 | H38: 0
B39: Methyl chloroform | E39: ='Fuel oil'!H38 ->  | G39: =Wood!H50 -> 0 | H39: 0
B40: Naphthalene | C40: ='Natural gas'!H35 -> 0 | D40: =Propane!H36 -> 0 | E40: ='Fuel oil'!H39 ->  | F40: ='Waste oil'!H35 -> 0 | G40: =Wood!H51 -> 0 | H40: 0
B41: Phenol | G41: =Wood!H52 -> 0 | H41: 0
B42: Propionaldehyde | G42: =Wood!H53 -> 0 | H42: 0
B43: Styrene | G43: =Wood!H54 -> 0 | H43: 0
B44: 2,3,7,8-Tetrachlorodibenzo-p-dioxin | G44: =Wood!H55 -> 0 | H44: 0
B45: 2,4,6-Trichlorophenol | G45: =Wood!H56 -> 0 | H45: 0
B46: Toluene | C46: ='Natural gas'!H36 -> 0 | D46: =Propane!H37 -> 0 | E46: ='Fuel oil'!H40 ->  | G46: =Wood!H57 -> 0 | H46: 0
B47: Vinyl acetate | G47: =Wood!H58 -> 0 | H47: 0
B48: o-Xylene | E48: ='Fuel oil'!H41 ->  | G48: =Wood!H59 -> 0 | H48: =SUM(C48:G48) -> 0
B49: Antimony | E49: ='Fuel oil'!H42 ->  | G49: =Wood!H60 -> 0 | H49: 0
B50: Arsenic | C50: ='Natural gas'!H37 -> 0 | D50: =Propane!H38 -> 0 | E50: ='Fuel oil'!H43 ->  | F50: ='Waste oil'!H36 -> 0 | G50: =Wood!H61 -> 0 | H50: 0
B51: Beryllium | C51: ='Natural gas'!H38 -> 0 | D51: =Propane!H39 -> 0 | E51: ='Fuel oil'!H44 ->  | G51: =Wood!H62 -> 0 | H51: 0
B52: Cadmium | C52: ='Natural gas'!H39 -> 0 | D52: =Propane!H40 -> 0 | E52: ='Fuel oil'!H45 ->  | F52: ='Waste oil'!H37 -> 0 | G52: =Wood!H63 -> 0 | H52: 0
B53: Chromium | C53: ='Natural gas'!H40 -> 0 | D53: =Propane!H41 -> 0 | E53: ='Fuel oil'!H46 ->  | F53: ='Waste oil'!H38 -> 0 | G53: =Wood!H64 -> 0 | H53: 0
B54: Chromium (VI) | E54: ='Fuel oil'!H47 ->  | G54: =Wood!H65 -> 0 | H54: 0
B55: Cobalt | C55: ='Natural gas'!H41 -> 0 | D55: =Propane!H42 -> 0 | E55: ='Fuel oil'!H48 ->  | F55: ='Waste oil'!H39 -> 0 | G55: =Wood!H66 -> 0 | H55: 0
B56: Manganese | C56: ='Natural gas'!H42 -> 0 | D56: =Propane!H43 -> 0 | E56: ='Fuel oil'!H49 ->  | F56: ='Waste oil'!H40 -> 0 | G56: =Wood!H67 -> 0 | H56: 0
B57: Mercury | C57: ='Natural gas'!H43 -> 0 | D57: =Propane!H44 -> 0 | E57: ='Fuel oil'!H50 ->  | G57: =Wood!H68 -> 0 | H57: 0
B58: Nickel | C58: ='Natural gas'!H44 -> 0 | D58: =Propane!H45 -> 0 | E58: ='Fuel oil'!H51 ->  | F58: ='Waste oil'!H41 -> 0 | G58: =Wood!H69 -> 0 | H58: 0
B59: Selenium | C59: ='Natural gas'!H45 -> 0 | D59: =Propane!H46 -> 0 | E59: ='Fuel oil'!H52 ->  | G59: =Wood!H70 -> 0 | H59: 0
B60: HAP Indiv. Max | H60: =MAX(H22:H59) -> 0 | I60: 10
B61: HAP total | H61: =SUM(H22:H59) -> 0 | I61: 25
B62: 1 Xylenes (total) includes emission factors listed as o-Xylene.
B63: =IF(OR(H60>=10,H61>=25),"Your potential air emissions of a single HAP or total of all HAPs has exceeded permitting thresholds. You are a major source of HAPs: see the industrial, commercial, and institutional boilers and process heaters below. (40 CFR 63, supb. DDDDD)","") -> 
B65: =IF(OR(H60>=10,H61>=25),"https://www.epa.gov/stationary-sources-air-pollution/industrial-commercial-and-institutional-boilers-and-process-heaters","") -> 

Sheet Actual emissions
B1: =Instructions!F3 -> p-sbap5-21 • 6/5/23
B2: Actual emissions: Boilers, funaces, and space heaters
B3: =IF('Data validation'!B32="yes","The flag next to your actual emissions total indicates that your business exceeds the Option D limit and an individual permit is required.","These pollutant totals represent the information you entered in the blue tabs.") -> These pollutant totals represent the information you entered in the blue tabs.
B4: Pollutant | C4: Natural Gas | D4: Propane | E4: Fuel Oil | F4: Waste Oil | G4: Wood | H4: Actual Emissions | I4: Opt. D Permit Limits
C6: (ton/yr) | D6: (ton/yr) | E6: (ton/yr) | F6: (ton/yr) | G6: (ton/yr) | H6: (ton/yr) | I6: (ton/yr)
B7: Criteria Air Pollutants
B8: PM | C8: ='Natural gas'!I18 -> 0 | D8: =Propane!I19 -> 0 | E8: ='Fuel oil'!I21 -> 0 | F8: ='Waste oil'!I21 -> 0 | G8: =Wood!I20 -> 0 | H8: =SUM(C8:G8) -> 0 | I8: 50
B9: PM10 | C9: ='Natural gas'!I19 -> 0 | D9: =Propane!I20 -> 0 | E9: ='Fuel oil'!I22 -> 0 | F9: ='Waste oil'!I22 -> 0 | G9: =Wood!I21 -> 0 | H9: 0 | I9: 50
B10: PM2.5 | C10: ='Natural gas'!I20 -> 0 | D10: =Propane!I21 -> 0 | E10: ='Fuel oil'!I23 -> 0 | F10: ='Waste oil'!I23 -> 0 | G10: =Wood!I22 -> 0 | H10: 0
B11: SOx | C11: ='Natural gas'!I21 -> 0 | D11: =Propane!I22 -> 0 | E11: ='Fuel oil'!I24 -> 0 | F11: ='Waste oil'!I24 -> 0 | G11: =Wood!I23 -> 0 | H11: 0 | I11: 50
B12: NOx | C12: ='Natural gas'!I22 -> 0 | D12: =Propane!I23 -> 0 | E12: ='Fuel oil'!I25 -> 0 | F12: ='Waste oil'!I25 -> 0 | G12: =Wood!I24 -> 0 | H12: 0 | I12: 50
B13: VOC | C13: ='Natural gas'!I23 -> 0 | D13: =Propane!I24 -> 0 | E13: ='Fuel oil'!I26 -> 0 | F13: ='Waste oil'!I26 -> 0 | G13: =Wood!I25 -> 0 | H13: 0 | I13: 50
B14: CO | C14: ='Natural gas'!I24 -> 0 | D14: =Propane!I25 -> 0 | E14: ='Fuel oil'!I27 -> 0 | F14: ='Waste oil'!I27 -> 0 | G14: =Wood!I26 -> 0 | H14: 0 | I14: 50
B15: Lead | C15: ='Natural gas'!I25 -> 0 | D15: =Propane!I26 -> 0 | E15: ='Fuel oil'!I28 -> 0 | F15: ='Waste oil'!I28 -> 0 | G15: =Wood!I27 -> 0 | H15: 0 | I15: 0.5
B16: Greenhouse Gas Emissions
B17: CO2 | C17: ='Natural gas'!I27 -> 0 | D17: =Propane!I28 -> 0 | E17: ='Fuel oil'!I30 -> 0 | F17: ='Waste oil'!I30 -> 0 | G17: =Wood!I29 -> 0 | H17: =SUM(C17:G17) -> 0
B18: CH4 | C18: ='Natural gas'!I28 -> 0 | D18: =Propane!I29 -> 0 | E18: ='Fuel oil'!I31 -> 0 | F18: ='Waste oil'!I31 -> 0 | G18: =Wood!I30 -> 0 | H18: =SUM(C18:G18) -> 0
B19: N2O | C19: ='Natural gas'!I29 -> 0 | D19: =Propane!I30 -> 0 | E19: ='Fuel oil'!I32 -> 0 | F19: ='Waste oil'!I32 -> 0 | G19: =Wood!I31 -> 0 | H19: =SUM(C19:G19) -> 0
B20: GHG total CO2e | H20: =(H17*1)+(H18*25)+(H19*298) -> 0 | I20: 50000
B21: Hazardous Air Pollutants
B22: Acetaldehyde | G22: =Wood!I34 -> 0 | H22: =SUM(C22:G22) -> 0
B23: Acetophenone | G23: =Wood!I35 -> 0 | H23: 0
B24: Acrolein | G24: =Wood!I36 -> 0 | H24: 0
B25: Benzene | C25: ='Natural gas'!I32 -> 0 | D25: =Propane!I33 -> 0 | E25: ='Fuel oil'!I35 ->  | G25: =Wood!I37 -> 0 | H25: 0
B26: Bis(2-ethylhexyl)phthalate | G26: =Wood!I38 -> 0 | H26: 0
B27: Carbon tetrachloride | G27: =Wood!I39 -> 0 | H27: 0
B28: Chlorine | G28: =Wood!I40 -> 0 | H28: 0
B29: 2-Chloroacetophenone | G29: =Wood!I41 -> 0 | H29: 0
B30: Chlorobenzene | G30: =Wood!I42 -> 0 | H30: 0
B31: Chloroform | G31: =Wood!I43 -> 0 | H31: 0
B32: 2,4-Dinitrotoluene | G32: =Wood!I44 -> 0 | H32: 0
B33: Ethyl benzene | E33: ='Fuel oil'!I36 ->  | G33: =Wood!I45 -> 0 | H33: 0
B34: Ethylene dibromide | G34: =Wood!I46 -> 0 | H34: 0
B35: Ethylene dichloride | G35: =Wood!I47 -> 0 | H35: 0
B36: Formaldehyde | C36: ='Natural gas'!I33 -> 0 | D36: =Propane!I34 -> 0 | E36: ='Fuel oil'!I37 ->  | G36: =Wood!I48 -> 0 | H36: 0
B37: Hexane | C37: ='Natural gas'!I34 -> 0 | D37: =Propane!I35 -> 0 | H37: 0
B38: Methylene chloride | G38: =Wood!I49 -> 0 | H38: 0
B39: Methyl chloroform | E39: ='Fuel oil'!I38 ->  | G39: =Wood!I50 -> 0 | H39: 0
B40: Naphthalene | C40: ='Natural gas'!I35 -> 0 | D40: =Propane!I36 -> 0 | E40: ='Fuel oil'!I39 ->  | F40: ='Waste oil'!I35 -> 0 | G40: =Wood!I51 -> 0 | H40: 0
B41: Phenol | G41: =Wood!I52 -> 0 | H41: 0
B42: Propionaldehyde | G42: =Wood!I53 -> 0 | H42: 0
B43: Styrene | G43: =Wood!I54 -> 0 | H43: 0
B44: 2,3,7,8-Tetrachlorodibenzo-p-dioxin | G44: =Wood!I55 -> 0 | H44: 0
B45: 2,4,6-Trichlorophenol | G45: =Wood!I56 -> 0 | H45: 0
B46: Toluene | C46: ='Natural gas'!I36 -> 0 | D46: =Propane!I37 -> 0 | E46: ='Fuel oil'!I40 ->  | G46: =Wood!I57 -> 0 | H46: 0
B47: Vinyl acetate | G47: =Wood!I58 -> 0 | H47: 0
B48: o-Xylene | E48: ='Fuel oil'!I41 ->  | G48: =Wood!I59 -> 0 | H48: 0
B49: Antimony | E49: ='Fuel oil'!I42 ->  | G49: =Wood!I60 -> 0 | H49: 0
B50: Arsenic | C50: ='Natural gas'!I37 -> 0 | D50: =Propane!I38 -> 0 | E50: ='Fuel oil'!I43 ->  | F50: ='Waste oil'!I36 -> 0 | G50: =Wood!I61 -> 0 | H50: 0
B51: Beryllium | C51: ='Natural gas'!I38 -> 0 | D51: =Propane!I39 -> 0 | E51: ='Fuel oil'!I44 ->  | G51: =Wood!I62 -> 0 | H51: 0
B52: Cadmium | C52: ='Natural gas'!I39 -> 0 | D52: =Propane!I40 -> 0 | E52: ='Fuel oil'!I45 ->  | F52: ='Waste oil'!I37 -> 0 | G52: =Wood!I63 -> 0 | H52: 0
B53: Chromium | C53: ='Natural gas'!I40 -> 0 | D53: =Propane!I41 -> 0 | E53: ='Fuel oil'!I46 ->  | F53: ='Waste oil'!I38 -> 0 | G53: =Wood!I64 -> 0 | H53: 0
B54: Chromium (VI) | E54: ='Fuel oil'!I47 ->  | G54: =Wood!I65 -> 0 | H54: 0
B55: Cobalt | C55: ='Natural gas'!I41 -> 0 | D55: =Propane!I42 -> 0 | E55: ='Fuel oil'!I48 ->  | F55: ='Waste oil'!I39 -> 0 | G55: =Wood!I66 -> 0 | H55: 0
B56: Manganese | C56: ='Natural gas'!I42 -> 0 | D56: =Propane!I43 -> 0 | E56: ='Fuel oil'!I49 ->  | F56: ='Waste oil'!I40 -> 0 | G56: =Wood!I67 -> 0 | H56: 0
B57: Mercury | C57: ='Natural gas'!I43 -> 0 | D57: =Propane!I44 -> 0 | E57: ='Fuel oil'!I50 ->  | G57: =Wood!I68 -> 0 | H57: 0
B58: Nickel | C58: ='Natural gas'!I44 -> 0 | D58: =Propane!I45 -> 0 | E58: ='Fuel oil'!I51 ->  | F58: ='Waste oil'!I41 -> 0 | G58: =Wood!I69 -> 0 | H58: 0
B59: Selenium | C59: ='Natural gas'!I45 -> 0 | D59: =Propane!I46 -> 0 | E59: ='Fuel oil'!I52 ->  | G59: =Wood!I70 -> 0 | H59: =SUM(C59:G59) -> 0
B60: HAP Indiv. Max | H60: =MAX(H22:H59) -> 0 | I60: 5
B61: HAP total | H61: =SUM(H22:H59) -> 0 | I61: 12.5
B62: 1 Xylenes (total) includes emission factors listed as o-Xylene.

Sheet Permits & requirements
B1: =Instructions!F3 -> p-sbap5-21 • 6/5/23
B2: Permits and requirements
B3: The need for a permit is based on your entire facility's potential air emissions. All activities that put pollutants into the air (including paint and solvent use, woodworking, or metalworking) need to be assessed in addition to your heating units. Once you determine if you need a permit, based on whether an NSPS applies and your total potential emissions, you can then use your actual emissions to see which permit is the best fit for your business.
B6: Content below is a recommendation based on the information entered into this calculator and is not a regulatory determination.
B8: Is a permit required? | F8: What type of permit? Assumes all air pollutant activities are entered into this calculator. If you have additional air emission sources, the recommendation below cannot be used. You must assess your facility's total potential emissions from all sources to identify your permitting needs.
B9: The summary below is based on the information you entered in blue tabs.
B10: Your facility's potential emissions from boilers | C10: Your facility's actual emissions from boilers | D10: A federal NSPS for boilers | E10: A federal NESHAP for boilers
B13: =IF('Data validation'!B29="yes","does","does not") -> does not | C13: =IF('Data validation'!B32="yes","does","does not") -> does not | D13: =IF('Federal standards'!N16="Yes","does",IF('Federal standards'!N16="No","does not",IF('Federal standards'!N16="Choose Y/N","Return to federal standards tab (choose Y/N)"))) -> Return to federal standards tab (choose Y/N) | E13: =IF('Federal standards'!N28="Yes","does",IF('Federal standards'!N28="No","does not",IF('Federal standards'!N28="Choose Y/N","Return to federal standards tab (choose Y/N)"))) -> Return to federal standards tab (choose Y/N)
B16: exceed permit thresholds | C16: exceed Option D limits | D16: apply to your business | E16: apply to your business
B18: Potential emissions from boilers exceeds permit thresholds | C18: Actual emissions from boilers exceeds Option D limits | D18: Federal NSPS for boilers applies? | E18: Federal NESHAP for boilers applies? | F18: Which permit do you need? | H18: More Information | I18: Forms
B22: no | C22: n/a | D22: no | E22: Applicability of a NESHAP does not determine if a permit is required. | F22: Below permit thresholds | H22: n/a | I22: n/a
B23: no | C23: n/a | D23: yes | F23: Registration Option A | H23: Info about Air Registration Permits | I23: Application Forms, scroll to Registration forms
B24: yes | C24: no | D24: no | F24: Registration Option D
B25: yes | C25: no | D25: yes | F25: Registration Option D
B26: yes | C26: yes | D26: no | F26: Other state or federal permit | H26: Info about Air Permits | I26: Application Forms
B27: yes | C27: yes | D27: yes | F27: Other state or federal permit
B29: Types of insignificant activities | D29: Minn. R. 7007.1300
B30: subp. 2 | C30: Not required to be listed.
B31: supb. 3 | C31: Required to be listed but emissions do not need to be included in total facility emission calculations, unless requested by MPCA.
B32: subp. 4 | C32: Required to be listed if applying for a Part 70 (Federal permit or federally enforceable permit limits) but emissions do not need to be included in total facility emission calculations, unless requested by MPCA.
B34: If emissions units listed in 7007.1300 are subject to additional requirements under section 114(a)(3) of the act (Monitoring Requirements) or section 112 of the act (Hazardous Air Pollutants), or if part of a title I modification, or, if accounted for, make a stationary source subject to a part 70 permit, emissions from the emissions units must be calculated in the permit application.
B37: If all emission points are insignificant and total emissions do not exceed permitting thresholds, a permit is not required. Comply with any applicable regulations.

Sheet Fuel oil emission factors
A1: =Instructions!F3 -> p-sbap5-21 • 6/5/23
A2: Emission factors - Fuel oil
B3: Factors from AP-42 Chapter 1.3 Fuel Oil Combustion, May 2010
B4: Distillate Oil | F4: Residual Oil
A5: Choose one | B5: Fuel Oil No. 1 | D5: Fuel Oil No. 2 | F5: Fuel Oil No. 5 | H5: Fuel Oil No. 6
B6: Commercial | C6: Industrial | D6: Commercial | E6: Industrial | F6: Commercial | G6: Industrial | H6: Commercial | I6: Industrial
A7: Source | B7: Assume No. 1 = No. 2 | C7: Assume No. 1 = No. 2 | D7: Table 1.3-1 <100 MMBtu | E7: Table 1.3-6 | F7: Table 1.3-7 | G7: Table 1.3-5 | H7: Table 1.3-7 | I7: Table 1.5-5
A8: Units | B8: lb/gal | C8: lb/gal | D8: lb/gal | E8: lb/gal | F8: lb/gal | G8: lb/gal | H8: lb/gal | I8: lb/gal
A9: PM | B9: =(8.34*0.24)/1000 -> 0.0020016 | C9: =2/1000 -> 0.002 | D9: =(8.34*0.24)/1000 -> 0.0020016 | E9: =2/1000 -> 0.002 | F9: =(8.34*1.2)/1000 -> 0.010008 | G9: =(8.34*1.2)/1000 -> 0.010008 | H9: =(8.34*(1.12*('Fuel oil'!$G$11)+0.37))/1000 -> 0.00355284 | I9: =(8.34*(1.12*('Fuel oil'!$G$11)+0.37))/1000 -> 0.00355284
A10: PM10 | B10: =(5.17*0.24)/1000 -> 0.0012408 | C10: =1/1000 -> 0.001 | D10: =(5.17*0.24)/1000 -> 0.0012408 | E10: =1/1000 -> 0.001 | F10: =(5.17*1.2)/1000 -> 0.006204 | G10: =(7.17*1.2)/1000 -> 0.008604 | H10: =(5.17*(1.12*('Fuel oil'!$G$11)+0.37))/1000 -> 0.00220242 | I10: =(7.17*(1.12*('Fuel oil'!$G$11)+0.37))/1000 -> 0.00305442
A11: PM2.5 | B11: =(1.92*0.24)/1000 -> 0.0004608 | C11: =0.25/1000 -> 0.00025 | D11: =(1.92*0.24)/1000 -> 0.0004608 | E11: =0.25/1000 -> 0.00025 | F11: =(1.92*1.2)/1000 -> 0.002304 | G11: =(4.67*1.2)/1000 -> 0.005604 | H11: =(1.92*(1.12*('Fuel oil'!$G$11)+0.37))/1000 -> 0.00081792 | I11: =(4.67*(1.12*('Fuel oil'!$G$11)+0.37))/1000 -> 0.00198942
B14: Fuel Oil No. 1 | D14: Fuel Oil No. 2 | F14: Fuel Oil No. 5 | H14: Fuel Oil No. 6
A15: Source | B15: Table 1.3-1 <100 MMBtu | D15: Table 1.3-1 <100 MMBtu | F15: Table 1.3-1 <100 MMBtu | H15: Table 1.3-1 <100 MMBtu
A16: Units | B16: lb/gal | D16: lb/gal | F16: lb/gal | H16: lb/gal
A17: SOx1 | B17: =(142*'Fuel oil'!$G$11)/1000 -> 0.0071 | D17: =(142*'Fuel oil'!$G$11)/1000 -> 0.0071 | F17: =(157*'Fuel oil'!$G$11)/1000 -> 0.00785 | H17: =(157*'Fuel oil'!$G$11)/1000 -> 0.00785
A18: NOx | B18: =20/1000 -> 0.02 | D18: =20/1000 -> 0.02 | F18: =55/1000 -> 0.055 | H18: =55/1000 -> 0.055
A19: VOC | B19: =0.2/1000 -> 0.0002 | D19: =0.2/1000 -> 0.0002 | F19: =0.28/1000 -> 0.00028 | H19: =0.28/1000 -> 0.00028
A20: CO | B20: =5/1000 -> 0.005 | D20: =5/1000 -> 0.005 | F20: =5/1000 -> 0.005 | H20: =5/1000 -> 0.005
A21: Lead | B21: =(9*10^(-12))/1000 -> 9e-15 | D21: =(9*10^(-12))/1000 -> 9e-15 | F21: =H21 -> 1.51e-06 | H21: =0.00151/1000 -> 1.51e-06
A22: Source | B22: See table below | D22: See table below | F22: See table below | H22: See table below
A23: CO2 | B23: =B66 -> 22.39985 | D23: =B67 -> 22.454256 | F23: =B68 -> 22.46244 | H23: =B69 -> 24.783
A24: CH4 | B24: =C66 -> 0.0009174 | D24: =C67 -> 0.0009108 | F24: =C68 -> 0.000924 | H24: =C69 -> 0.00099
A25: N2O | B25: =D61 -> 0.006 | D25: =D67 -> 0.0018216 | F25: =D68 -> 0.001848 | H25: =D69 -> 0.00198
A26: Source | B26: Assume = Residual | D26: Assume = Residual | F26: Table 1.3-9 | H26: Table 1.3-9
A27: Benzene | B27: =F27 -> 2.14e-07 | D27: =B27 -> 2.14e-07 | F27: =H27 -> 2.14e-07 | H27: =0.000214/1000 -> 2.14e-07
A28: Ethylbenzene | B28: 6.36e-08 | D28: 6.36e-08 | F28: 6.36e-08 | H28: =0.0000636/1000 -> 6.36e-08
A29: Formaldehyde | B29: 3.3e-05 | D29: 3.3e-05 | F29: 3.3e-05 | H29: =0.033/1000 -> 3.3e-05
A30: Methyl chloroform | B30: =F30 -> 2.36e-07 | D30: =B30 -> 2.36e-07 | F30: =H30 -> 2.36e-07 | H30: =0.000236/1000 -> 2.36e-07
A31: Naphthalene | B31: 1.13e-06 | D31: 1.13e-06 | F31: 1.13e-06 | H31: =0.00113/1000 -> 1.13e-06
A32: Toluene | B32: 6.2e-06 | D32: 6.2e-06 | F32: 6.2e-06 | H32: =0.0062/1000 -> 6.2e-06
A33: o-Xylene | B33: 1.09e-07 | D33: 1.09e-07 | F33: 1.09e-07 | H33: =0.000109/1000 -> 1.09e-07
A34: Source | B34: Table 1.3-10 | D34: Table 1.3-10 | F34: Assume = to Fuel Oil No 6 | H34: Table 1.3-11
A35: Antimony | F35: =H35 -> 5.25e-06 | H35: =0.00525/1000 -> 5.25e-06
A36: Arsenic | B36: =4*10^(-12)*C51 -> 5.56e-07 | D36: =4*10^(-12)*C52 -> 5.52e-07 | F36: =H36 -> 1.32e-06 | H36: =0.00132/1000 -> 1.32e-06
A37: Beryllium | B37: =3*10^(-12)*C51 -> 4.17e-07 | D37: =3*10^(-12)*C52 -> 4.14e-07 | F37: 2.78e-08 | H37: =0.0000278/1000 -> 2.78e-08
A38: cadmium | B38: =3*10^(-12)*C51 -> 4.17e-07 | D38: =3*10^(-12)*C52 -> 4.14e-07 | F38: 3.98e-07 | H38: =0.000398/1000 -> 3.98e-07
A39: Chromium | B39: =3*10^(-12)*C51 -> 4.17e-07 | D39: =3*10^(-12)*C52 -> 4.14e-07 | F39: 8.45e-07 | H39: =0.000845/1000 -> 8.45e-07
A40: Chromium (VI) | F40: 2.48e-07 | H40: =0.000248/1000 -> 2.48e-07
A41: Cobalt | F41: 6.02e-06 | H41: =0.00602/1000 -> 6.02e-06
A42: Manganese | B42: =6*10^(-12)*C51 -> 8.34e-07 | D42: =6*10^(-12)*C52 -> 8.28e-07 | F42: =H42 -> 3e-06 | H42: =0.003/1000 -> 3e-06
A43: Mercury | B43: =3*10^(-12)*C51 -> 4.17e-07 | D43: =3*10^(-12)*C52 -> 4.14e-07 | F43: 1.13e-07 | H43: =0.000113/1000 -> 1.13e-07
A44: Nickel | B44: =3*10^(-12)*C51 -> 4.17e-07 | D44: =3*10^(-12)*C52 -> 4.14e-07 | F44: 8.45e-05 | H44: =0.0845/1000 -> 8.45e-05
A45: Selenium | B45: =15*10^(-12)*C51 -> 2.085e-06 | D45: =15*10^(-12)*C52 -> 2.07e-06 | F45: 6.83e-07 | H45: =0.000683/1000 -> 6.83e-07
A46: 1 | B46: SOx emission factor given is multiplied by the sulfur content in the fuel in the blue Fuel Oil tab.
A49: Heat Value | B49: Heat Value1 | C49: Heat Value
B50: mmBtu/gal | C50: Btu/gal
A51: Fuel Oil No. 1 | B51: 0.139 | C51: =B51*1000000 -> 139000
A52: Fuel Oil No. 2 | B52: 0.138 | C52: =B52*1000000 -> 138000
A53: Fuel Oil No. 5 | B53: 0.14 | C53: =B53*1000000 -> 140000
A54: Fuel Oil No. 6 | B54: 0.15 | C54: =B54*1000000 -> 150000
A55: 1 | B55: 40 CFR 98, subp. C, Table C-1 and C-2
A56: 2 | B56: AP-42 Appendix A. weights of selected substances
A59: GHG 1 | B59: CO2 | C59: CH4 | D59: N2O
B60: kg/MMBtu | C60: kg/MMBtu | D60: kg/MMBtu
A61: Fuel Oil No. 1 | B61: 73.25 | C61: 0.003 | D61: 0.006
A62: Fuel Oil No. 2 | B62: 73.96 | C62: 0.003 | D62: 0.006
A63: Fuel Oil No. 5 | B63: 72.93 | C63: 0.003 | D63: 0.006
A64: Fuel Oil No. 6 | B64: 75.1 | C64: 0.003 | D64: 0.006
B65: lb/gal | C65: lb/gal | D65: lb/gal
A66: Fuel Oil No. 1 | B66: =B61*C51/1000000*2.2 -> 22.39985 | C66: =C61*C51/1000000*2.2 -> 0.0009174 | D66: =D61*C51/1000000*2.2 -> 0.0018348
A67: Fuel Oil No. 2 | B67: =B62*C52/1000000*2.2 -> 22.454256 | C67: =C62*C52/1000000*2.2 -> 0.0009108 | D67: =D62*C52/1000000*2.2 -> 0.0018216
A68: Fuel Oil No. 5 | B68: =B63*C53/1000000*2.2 -> 22.46244 | C68: =C63*C53/1000000*2.2 -> 0.000924 | D68: =D63*C53/1000000*2.2 -> 0.001848
A69: Fuel Oil No. 6 | B69: =B64*C54/1000000*2.2 -> 24.783 | C69: =C64*C54/1000000*2.2 -> 0.00099 | D69: =D64*C54/1000000*2.2 -> 0.00198
A70: 1 | B70: 40 CFR 98, subp. C, Table C-1 and C-2

Sheet Wood emission factors
E1: =Instructions!F3 -> p-sbap5-21 • 6/5/23
A2: Emission factors - Wood
A3: Factors from AP-42 Chapter 1.6 Wood Residue Combustion, Sept. 2003 | B3: Factors from AP-42 Chapter 1.6 Wood Residue Combustion, Sept. 2003
A4: Wood Type | B4: =BBW -> Bark or Bark with Wet Wood | C4: =WW -> Wet Wood | D4: =DW -> Dry Wood | E4: =AWT -> All Wood Types
A5: Moisture | B5: 0.5 | C5: 0.4 | D5: 0.2
A6: Heat Value (Btu/ton) | B6: =D61 -> 8740000 | C6: =D62 -> 10488000 | D6: =D63 -> 17480000 | E6: =MIN(B6:D6) -> 8740000
A7: Units | B7: lb/ton | C7: lb/ton | D7: lb/ton | E7: lb/ton
A8: PM | B8: =B76*B$6/1000000 -> 4.8944 | C8: 3.46104 | D8: 6.992 | E8: =MAX(B8:D8) -> 6.992
A9: PM10 | B9: 4.37 | C9: 3.04152 | D9: 6.2928 | E9: =MAX(B9:D9) -> 6.2928
A10: PM2.5 | B10: 3.7582 | C10: 2.622 | D10: 5.4188 | E10: 5.4188
A11: SOx | B11: 0.2185 | C11: 0.2622 | D11: 0.437 | E11: 0.437
A12: NOx | B12: 1.9228 | C12: 2.30736 | D12: 8.5652 | E12: 8.5652
A13: VOC | B13: 0.14858 | C13: 0.178296 | D13: 0.29716 | E13: 0.29716
A14: CO | B14: 5.244 | C14: 6.2928 | D14: 10.488 | E14: 10.488
A15: Lead | B15: 0.00041952 | C15: 0.000503424 | D15: 0.00083904 | E15: 0.00083904
A16: GHG (see GHG table)
A17: CO2 | B17: =$G61/1000000*B$6*2.20462 -> 1807.373931 | C17: 2168.848718 | D17: 3614.747863 | E17: 3614.747863
A18: CH4 | B18: 0.1387323274 | C18: 0.1664787928 | D18: 0.2774646547 | E18: 0.2774646547
A19: N2O | B19: 0.06936616368 | C19: 0.08323939642 | D19: 0.1387323274 | E19: 0.1387323274
A20: HAPs (Table 1.6-3 and 4)
A21: Acetaldehyde | B21: =$B92*B$6/1000000 -> 0.0072542 | C21: 0.00870504 | D21: 0.0145084 | E21: 0.0145084
A22: Acetophenone | B22: 2.7968e-08 | C22: 3.35616e-08 | D22: 5.5936e-08 | E22: 5.5936e-08
A23: Acrolein | B23: 0.03496 | C23: 0.041952 | D23: 0.06992 | E23: 0.06992
A24: Benzene | B24: 0.036708 | C24: 0.0440496 | D24: 0.073416 | E24: 0.073416
A25: Bis(2-ethylhexyl)phthalate | B25: 4.1078e-07 | C25: 4.92936e-07 | D25: 8.2156e-07 | E25: 8.2156e-07
A26: Carbon tetrachloride | B26: 0.0003933 | C26: 0.00047196 | D26: 0.0007866 | E26: 0.0007866
A27: Chlorine | B27: 0.0069046 | C27: 0.00828552 | D27: 0.0138092 | E27: 0.0138092
A28: 2-Chloroacetophenone | B28: 2.0976e-08 | C28: 2.51712e-08 | D28: 4.1952e-08 | E28: 4.1952e-08
A29: Chlorobenzene | B29: 0.00024472 | C29: 0.000293664 | D29: 0.00048944 | E29: 0.00048944
A30: Chloroform | B30: 0.00020102 | C30: 0.000241224 | D30: 0.00040204 | E30: 0.00040204
A31: 2,4-Dinitrophenol | B31: 1.5732e-06 | C31: 1.88784e-06 | D31: 3.1464e-06 | E31: 3.1464e-06
A32: Ethyl benzene | B32: 0.00027094 | C32: 0.000325128 | D32: 0.00054188 | E32: 0.00054188
A33: Ethylene dibromide | B33: 0.0025346 | C33: 0.00304152 | D33: 0.0050692 | E33: 0.0050692
A34: Ethylene dichloride | B34: 0.00028842 | C34: 0.000346104 | D34: 0.00057684 | E34: 0.00057684
A35: Formaldehyde | B35: 0.038456 | C35: 0.0461472 | D35: 0.076912 | E35: 0.076912
A36: Methylene chloride | B36: =$B109*B$6/1000000 -> 0.00020102 | C36: =$B109*C$6/1000000 -> 0.000241224 | D36: =$B109*D$6/1000000 -> 0.00040204 | E36: 0.00040204
A37: Methyl chloroform | B37: =$B108*B$6/1000000 -> 0.0027094 | C37: =$B108*C$6/1000000 -> 0.00325128 | D37: =$B108*D$6/1000000 -> 0.0054188 | E37: 0.0054188
A38: Naphthalene | B38: =$B110*B$6/1000000 -> 0.00084778 | C38: 0.001017336 | D38: 0.00169556 | E38: 0.00169556
A39: Phenol | B39: 0.00044574 | C39: 0.000534888 | D39: 0.00089148 | E39: 0.00089148
A40: Propionaldehyde | B40: 0.00053314 | C40: 0.000639768 | D40: 0.00106628 | E40: 0.00106628
A41: Styrene | B41: 0.016606 | C41: 0.0199272 | D41: 0.033212 | E41: 0.033212
A42: 2,3,7,8-Tetrachlorodibenzo-p-dioxin | B42: 7.5164e-11 | C42: 9.01968e-11 | D42: 1.50328e-10 | E42: 1.50328e-10
A43: 2,4,6-Trichlorophenol | B43: 1.9228e-07 | C43: 2.30736e-07 | D43: 3.8456e-07 | E43: 3.8456e-07
A44: Toluene | B44: 0.0080408 | C44: 0.00964896 | D44: 0.0160816 | E44: 0.0160816
A45: Vinyl chloride | B45: 0.00015732 | C45: 0.000188784 | D45: 0.00031464 | E45: 0.00031464
A46: o-Xylenes | B46: 0.0002185 | C46: 0.0002622 | D46: 0.000437 | E46: 0.000437
A47: Antimony | B47: 6.9046e-05 | C47: 8.28552e-05 | D47: 0.000138092 | E47: 0.000138092
A48: Arsenic | B48: 0.00019228 | C48: 0.000230736 | D48: 0.00038456 | E48: 0.00038456
A49: Beryllium | B49: 9.614e-06 | C49: 1.15368e-05 | D49: 1.9228e-05 | E49: 1.9228e-05
A50: Cadmium | B50: 3.5834e-05 | C50: 4.30008e-05 | D50: 7.1668e-05 | E50: 7.1668e-05
A51: Chromium | B51: 0.00018354 | C51: 0.000220248 | D51: 0.00036708 | E51: 0.00036708
A52: Chromium (VI) | B52: 3.059e-05 | C52: 3.6708e-05 | D52: 6.118e-05 | E52: 6.118e-05
A53: Cobalt | B53: 5.681e-05 | C53: 6.8172e-05 | D53: 0.00011362 | E53: 0.00011362
A54: Manganese | B54: 0.013984 | C54: 0.0167808 | D54: 0.027968 | E54: 0.027968
A55: Mercury | B55: 3.059e-05 | C55: 3.6708e-05 | D55: 6.118e-05 | E55: 6.118e-05
A56: Nickel | B56: 0.00028842 | C56: 0.000346104 | D56: 0.00057684 | E56: 0.00057684
A57: Selenium | B57: 2.4472e-05 | C57: 2.93664e-05 | D57: 4.8944e-05 | E57: 4.8944e-05
A59: Heat Value | B59: Heat Value1 | C59: Moisture Content | D59: Heat Value | F59: GHG1 | G59: kg/MMBtu
B60: MMBtu/ton | C60: % by weight | D60: Btu/ton
A61: Bark or Bark with Wet Wood | B61: =((100-C61)/100)*$B$63 -> 8.74 | C61: 50 | D61: =B61*10^6 -> 8740000 | F61: CO2 | G61: 93.8
A62: Wet Wood | B62: =((100-C62)/100)*$B$63 -> 10.488 | C62: 40 | D62: =B62*10^6 -> 10488000 | F62: CH4 | G62: 0.0072
A63: Dry Wood | B63: 17.48 | C63: 20 | D63: =B63*10^6 -> 17480000 | F63: N2O | G63: 0.0036
A64: Formula to calculate on a wet basis = ( (100 − Moisture content) / 100 ) * Heat Value on a dry basis (20%) | F64: 1 | G64: 40 CFR 98, subp. C, Table C-1 and C-2
A65: 1 | B65: 40 CFR 98, subp. C, Table C-1 and C-2
A69: Emission Factors - Wood (lb/million Btu)
B70: Factors from AP-42 Chapter 1.6 Wood Residue Combustion, Sept. 2003
A71: Wood Type | B71: Bark or Bark with Wet Wood | C71: Wet Wood | D71: Dry Wood
A72: Moisture | B72: 0.5 | C72: 0.4 | D72: 0.2 | F72: GHG1 | G72: CO2 | H72: CH4 | I72: N2O
A73: Heat Value (Btu/ton) | B73: =B6 -> 8740000 | C73: =C6 -> 10488000 | D73: =D6 -> 17480000 | G73: kg/MMBtu | H73: kg/MMBtu | I73: kg/MMBtu
A74: Control Type | B74: Uncontrolled | C74: Uncontrolled | D74: Uncontrolled | F74: All Wood Types | G74: 93.8 | H74: 0.0072 | I74: 0.0036
A75: Units | B75: lb/MMBtu | C75: lb/MMBtu | D75: lb/MMBtu | G75: lb/MMBtu | H75: lb/MMBtu | I75: lb/MMBtu
A76: PM | B76: 0.56 | C76: 0.33 | D76: 0.4 | F76: All Wood Types | G76: =G74*1000*0.00220462 -> 206.793356 | H76: =H74*1000*0.00220462 -> 0.015873264 | I76: =I74*1000*0.00220462 -> 0.007936632
A77: PM10 | B77: 0.5 | C77: 0.29 | D77: 0.36 | F77: 1 | G77: 40 CFR 98, subp. C, Table C-1 and C-2
A78: PM2.5 | B78: 0.43 | C78: 0.25 | D78: 0.31
A79: SOx | B79: 0.025 | C79: 0.025 | D79: 0.025
A80: NOx | B80: 0.22 | C80: 0.22 | D80: 0.49
A81: VOC | B81: 0.017 | C81: 0.017 | D81: 0.017
A82: CO | B82: 0.6 | C82: 0.6 | D82: 0.6
A83: Lead | B83: 4.8e-05 | C83: 4.8e-05 | D83: 4.8e-05
B85: All Wood Types
A86: Units | B86: lb/MMBtu
A87: Source | B87: GHG table
A88: CO2 | B88: =G76 -> 206.793356
A89: CH4 | B89: =H76 -> 0.015873264
A90: N2O | B90: =I76 -> 0.007936632
A91: Source | B91: Table 1.6-3 and 4
A92: Acetaldehyde | B92: 0.00083
A93: Acetophenone | B93: 3.2e-09
A94: Acrolein | B94: 0.004
A95: Benzene | B95: 0.0042
A96: Bis(2-ethylhexyl)phthalate | B96: 4.7e-08
A97: Carbon tetrachloride | B97: 4.5e-05
A98: Chlorine | B98: 0.00079
A99: 2-Chloroacetophenone | B99: 2.4e-09
A100: Chlorobenzene | B100: 2.8e-05
A101: Chloroform | B101: 2.3e-05
A102: 2,4-Dinitrophenol | B102: 1.8e-07
A103: Ethyl benzene | B103: 3.1e-05
A104: Ethylene dibromide | B104: 0.00029
A105: Ethylene dichloride | B105: 3.3e-05
A106: Formaldehyde | B106: 0.0044
A107: MEK | B107: 5.4e-06
A108: Methyl chloroform | B108: 0.00031
A109: Methylene chloride | B109: 2.3e-05
A110: Naphthalene | B110: 9.7e-05
A111: Phenol | B111: 5.1e-05
A112: Propionaldehyde | B112: 6.1e-05
A113: Styrene | B113: 0.0019
A114: 2,3,7,8-Tetrachlorodibenzo-p-dioxin | B114: 8.6e-12
A115: 2,4,6-Trichlorophenol | B115: 2.2e-08
A116: Toluene | B116: 0.00092
A117: Vinyl chloride | B117: 1.8e-05
A118: o-Xylenes | B118: 2.5e-05
A119: Antimony | B119: 7.9e-06
A120: Arsenic | B120: 2.2e-05
A121: Beryllium | B121: 1.1e-06
A122: Cadmium | B122: 4.1e-06
A123: Chromium | B123: 2.1e-05
A124: Chromium (VI) | B124: 3.5e-06
A125: Cobalt | B125: 6.5e-06
A126: Manganese | B126: 0.0016
A127: Mercury | B127: 3.5e-06
A128: Nickel | B128: 3.3e-05
A129: Selenium | B129: 2.8e-06

Sheet Data validation (hidden)
A1: =Instructions!F3 -> p-sbap5-21 • 6/5/23
A2: Data validation
A4: Acutal emission entries: | B4: Options for fuel types:
A5: Natural Gas | B5: Fuel Oil
A6: Choose one | B6: Choose one
A7: hours were the units operated? | B7: Fuel Oil No. 1
A8: cubic feet of natural gas were burned? | B8: Fuel Oil No. 2
B9: Fuel Oil No. 5
B10: Fuel Oil No. 6
A11: Propane
A12: Choose one
A13: hours were the units operated? | B13: Fuel Oil
A14: gallons of propane were burned? | B14: Choose one
B15: =FOcom -> Commercial
B16: =FOind -> Industrial
A17: Fuel and Waste Oil
A18: Choose one
A19: hours were the units operated? | B19: Wood and Control Type
A20: gallons of fuel were burned? | B20: Choose one
B21: Bark or Bark with Wet Wood
B22: Dry Wood
A23: Wood | B23: Wet Wood
A24: Choose one | B24: All Wood Types
A25: hours were the units operated?
A26: tons of wood were burned?
B28: Potential Emissions Exceed
A29: Responses | B29: =IF(OR('Potential emissions'!H10>100,OR('Potential emissions'!H11>50,OR('Potential emissions'!H12>100,OR('Potential emissions'!H13>100,OR('Potential emissions'!H14>100,OR('Potential emissions'!H15>0.5,OR('Potential emissions'!H9>25,OR('Potential emissions'!H8>100,OR('Potential emissions'!H61>25,'Potential emissions'!H60>10))))))))),"yes","no") -> no
A30: Choose Y/N
A31: Yes | B31: Actual Emissions Exceed
A32: No | B32: =IF(OR('Actual emissions'!H8>=50,OR('Actual emissions'!H9>=50,OR('Actual emissions'!H10>=50,OR('Actual emissions'!H11>=50,OR('Actual emissions'!H12>=50,OR('Actual emissions'!H13>=50,OR('Actual emissions'!H14>=50,OR('Actual emissions'!H15>=0.5,OR('Actual emissions'!H61>=12.5,'Actual emissions'!H60>=5))))))))),"yes","no") -> no
A33: Both
A42: Update
A43: ISSUE: the cells of some pollutants on the potential and actual emission tabs pulled from different pollutants in the natural gas, propane, fuel oil and waste oil tab.
A44: This issue affects versions 2/13/2019 and 3/29/2021.
A45: The issue is corrected in the Feb 2022 version.
